Publisher Label,Publisher URI,"Supplier ID","Supplier","Invoice No.","Amount (£)","Purpose","Transaction Number","Payment Date","Organisational Unit","Cost Centre(T)","Internal Category Number"
"Wolverhampton City Council","http://opendatacommunities.org/id/metropolitan-district-council/wolverhampton","700033","Access Tail Lift Services Limited","20933","57.44","Services - Professional Fees","190333674","05/05/2017","Fleet Services","Fleet Management","R4400"
"Wolverhampton City Council","http://opendatacommunities.org/id/metropolitan-district-council/wolverhampton","700033","Access Tail Lift Services Limited","20939","57.44","Services - Professional Fees","190333675","05/05/2017","Fleet Services","Fleet Management","R4400"
"Wolverhampton City Council","http://opendatacommunities.org/id/metropolitan-district-council/wolverhampton","700033","Access Tail Lift Services Limited","20939","57.44","Services - Professional Fees","190333675","05/05/2017","Fleet Services","Fleet Management","R4400"
"Wolverhampton City Council","http://opendatacommunities.org/id/metropolitan-district-council/wolverhampton","700033","Access Tail Lift Services Limited","20939","57.44","Services - Professional Fees","190333675","05/05/2017","Fleet Services","Fleet Management","R4400"
"Wolverhampton City Council","http://opendatacommunities.org/id/metropolitan-district-council/wolverhampton","700033","Access Tail Lift Services Limited","20939","57.44","Services - Professional Fees","190333675","05/05/2017","Fleet Services","Fleet Management","R4400"
"Wolverhampton City Council","http://opendatacommunities.org/id/metropolitan-district-council/wolverhampton","700033","Access Tail Lift Services Limited","20939","57.44","Services - Professional Fees","190333675","05/05/2017","Fleet Services","Fleet Management","R4400"
"Wolverhampton City Council","http://opendatacommunities.org/id/metropolitan-district-council/wolverhampton","700033","Access Tail Lift Services Limited","20939","57.44","Services - Professional Fees","190333675","05/05/2017","Fleet Services","Fleet Management","R4400"
"Wolverhampton City Council","http://opendatacommunities.org/id/metropolitan-district-council/wolverhampton","700033","Access Tail Lift Services Limited","20939","57.44","Services - Professional Fees","190333675","05/05/2017","Fleet Services","Fleet Management","R4400"
"Wolverhampton City Council","http://opendatacommunities.org/id/metropolitan-district-council/wolverhampton","700033","Access Tail Lift Services Limited","20956","57.44","Services - Professional Fees","190335789","12/05/2017","Fleet Services","Fleet Management","R4400"
"Wolverhampton City Council","http://opendatacommunities.org/id/metropolitan-district-council/wolverhampton","700033","Access Tail Lift Services Limited","20956","57.44","Services - Professional Fees","190335789","12/05/2017","Fleet Services","Fleet Management","R4400"
"Wolverhampton City Council","http://opendatacommunities.org/id/metropolitan-district-council/wolverhampton","700033","Access Tail Lift Services Limited","20956","57.44","Services - Professional Fees","190335789","12/05/2017","Fleet Services","Fleet Management","R4400"
"Wolverhampton City Council","http://opendatacommunities.org/id/metropolitan-district-council/wolverhampton","700033","Access Tail Lift Services Limited","20956","57.44","Services - Professional Fees","190335789","12/05/2017","Fleet Services","Fleet Management","R4400"
"Wolverhampton City Council","http://opendatacommunities.org/id/metropolitan-district-council/wolverhampton","700033","Access Tail Lift Services Limited","20956","57.44","Services - Professional Fees","190335789","12/05/2017","Fleet Services","Fleet Management","R4400"
"Wolverhampton City Council","http://opendatacommunities.org/id/metropolitan-district-council/wolverhampton","700033","Access Tail Lift Services Limited","20956","57.44","Services - Professional Fees","190335789","12/05/2017","Fleet Services","Fleet Management","R4400"
"Wolverhampton City Council","http://opendatacommunities.org/id/metropolitan-district-council/wolverhampton","700033","Access Tail Lift Services Limited","20956","57.44","Services - Professional Fees","190335789","12/05/2017","Fleet Services","Fleet Management","R4400"
"Wolverhampton City Council","http://opendatacommunities.org/id/metropolitan-district-council/wolverhampton","700033","Access Tail Lift Services Limited","20956","57.44","Services - Professional Fees","190335789","12/05/2017","Fleet Services","Fleet Management","R4400"
"Wolverhampton City Council","http://opendatacommunities.org/id/metropolitan-district-council/wolverhampton","700033","Access Tail Lift Services Limited","20956","57.44","Services - Professional Fees","190335789","12/05/2017","Fleet Services","Fleet Management","R4400"
"Wolverhampton City Council","http://opendatacommunities.org/id/metropolitan-district-council/wolverhampton","700033","Access Tail Lift Services Limited","20963","57.44","Services - Professional Fees","190337261","17/05/2017","Fleet Services","Fleet Management","R4400"
"Wolverhampton City Council","http://opendatacommunities.org/id/metropolitan-district-council/wolverhampton","700033","Access Tail Lift Services Limited","20963","57.44","Services - Professional Fees","190337261","17/05/2017","Fleet Services","Fleet Management","R4400"
"Wolverhampton City Council","http://opendatacommunities.org/id/metropolitan-district-council/wolverhampton","700033","Access Tail Lift Services Limited","20975","57.44","Services - Professional Fees","190337262","17/05/2017","Fleet Services","Fleet Management","R4400"
"Wolverhampton City Council","http://opendatacommunities.org/id/metropolitan-district-council/wolverhampton","700033","Access Tail Lift Services Limited","20975","57.44","Services - Professional Fees","190337262","17/05/2017","Fleet Services","Fleet Management","R4400"
"Wolverhampton City Council","http://opendatacommunities.org/id/metropolitan-district-council/wolverhampton","700033","Access Tail Lift Services Limited","20975","57.44","Services - Professional Fees","190337262","17/05/2017","Fleet Services","Fleet Management","R4400"
"Wolverhampton City Council","http://opendatacommunities.org/id/metropolitan-district-council/wolverhampton","700033","Access Tail Lift Services Limited","20975","57.44","Services - Professional Fees","190337262","17/05/2017","Fleet Services","Fleet Management","R4400"
"Wolverhampton City Council","http://opendatacommunities.org/id/metropolitan-district-council/wolverhampton","700033","Access Tail Lift Services Limited","20977","30.00","Services - Professional Fees","190337263","17/05/2017","Fleet Services","Fleet Management","R4400"
"Wolverhampton City Council","http://opendatacommunities.org/id/metropolitan-district-council/wolverhampton","700220","THE Acme Facilities Group Ltd","IN302789","509.00","Equipment - Catering","130171076","17/05/2017","Catering","Education Catering - General Overheads","R4010"
"Wolverhampton City Council","http://opendatacommunities.org/id/metropolitan-district-council/wolverhampton","700264","Acorn Environmental Mgt Group Limited","10234","301.46","Grounds Maintenance - Contract","130169325","05/05/2017","Environmental Maintenance","Arbor Scheme","R2075"
"Wolverhampton City Council","http://opendatacommunities.org/id/metropolitan-district-council/wolverhampton","700264","Acorn Environmental Mgt Group Limited","10259","25,288.97","Construction and Conversion","130170430","10/05/2017","","Bilston Urban Village","C1100"
"Wolverhampton City Council","http://opendatacommunities.org/id/metropolitan-district-council/wolverhampton","700341","Acs Business Supplies Limited","SINV00377342","195.72","Stationery","130167829","10/05/2017","Looked After Children","Adoption and Residence Team & Allowances","R4308"
"Wolverhampton City Council","http://opendatacommunities.org/id/metropolitan-district-council/wolverhampton","700341","Acs Business Supplies Limited","SINV00380040","64.47","Stationery","130169883","24/05/2017","Legal Services","Legal Services","R4308"
"Wolverhampton City Council","http://opendatacommunities.org/id/metropolitan-district-council/wolverhampton","700341","Acs Business Supplies Limited","SCRN00043717","-74.85","Stationery","130151953","31/05/2017","Child Protection","MASH","R4308"
"Wolverhampton City Council","http://opendatacommunities.org/id/metropolitan-district-council/wolverhampton","700341","Acs Business Supplies Limited","SINV00378508","22.70","Stationery","130168409","10/05/2017","Skills","Connexions Contract","R4308"
"Wolverhampton City Council","http://opendatacommunities.org/id/metropolitan-district-council/wolverhampton","700341","Acs Business Supplies Limited","SINV00378508","23.75","Stationery","130168409","10/05/2017","Skills","IMPACT","R4308"
"Wolverhampton City Council","http://opendatacommunities.org/id/metropolitan-district-council/wolverhampton","700341","Acs Business Supplies Limited","SINV00379556","9.64","Stationery","130169720","24/05/2017","Bereavement Services","Cemeteries","R4308"
"Wolverhampton City Council","http://opendatacommunities.org/id/metropolitan-district-council/wolverhampton","700341","Acs Business Supplies Limited","SINV00378733","18.10","Stationery","130168679","17/05/2017","Adult Education","Service Wide","R4308"
"Wolverhampton City Council","http://opendatacommunities.org/id/metropolitan-district-council/wolverhampton","700341","Acs Business Supplies Limited","SINV00377838","13.76","Stationery","130168234","05/05/2017","Specialist Support","Intensive Family Support & Family Group Conferencing Team","R4308"
"Wolverhampton City Council","http://opendatacommunities.org/id/metropolitan-district-council/wolverhampton","700341","Acs Business Supplies Limited","SINV00377838","11.32","Stationery","130168234","05/05/2017","Specialist Support","Intensive Family Support & Family Group Conferencing Team","R4308"
"Wolverhampton City Council","http://opendatacommunities.org/id/metropolitan-district-council/wolverhampton","700341","Acs Business Supplies Limited","SINV00378330","59.98","Stationery","130168407","10/05/2017","Older People Assessment & Care Management","Assessment Team (East)","R4308"
"Wolverhampton City Council","http://opendatacommunities.org/id/metropolitan-district-council/wolverhampton","700341","Acs Business Supplies Limited","SINV00379889","19.99","Stationery","130169724","24/05/2017","Learning Disability Provider","City Links","R4308"
"Wolverhampton City Council","http://opendatacommunities.org/id/metropolitan-district-council/wolverhampton","700341","Acs Business Supplies Limited","SINV00379886","2.04","Stationery","130169721","24/05/2017","Democratic Services","General Elections","R4308"
"Wolverhampton City Council","http://opendatacommunities.org/id/metropolitan-district-council/wolverhampton","700341","Acs Business Supplies Limited","SINV00379886","3.51","Stationery","130169721","24/05/2017","Democratic Services","General Elections","R4308"
"Wolverhampton City Council","http://opendatacommunities.org/id/metropolitan-district-council/wolverhampton","700341","Acs Business Supplies Limited","SINV00379886","57.33","Stationery","130169721","24/05/2017","Democratic Services","General Elections","R4308"
"Wolverhampton City Council","http://opendatacommunities.org/id/metropolitan-district-council/wolverhampton","700341","Acs Business Supplies Limited","SINV00379886","6.99","Stationery","130169721","24/05/2017","Democratic Services","General Elections","R4308"
"Wolverhampton City Council","http://opendatacommunities.org/id/metropolitan-district-council/wolverhampton","700341","Acs Business Supplies Limited","SINV00379212","7.13","Stationery","130169330","17/05/2017","Learning Disability Provider","City Links","R4308"
"Wolverhampton City Council","http://opendatacommunities.org/id/metropolitan-district-council/wolverhampton","700341","Acs Business Supplies Limited","SINV00379209","273.96","Stationery","130169328","17/05/2017","ICTS","Document Centre - General","R4308"
"Wolverhampton City Council","http://opendatacommunities.org/id/metropolitan-district-council/wolverhampton","700341","Acs Business Supplies Limited","SINV00379888","3.84","Stationery","130169723","24/05/2017","Central Corporate Budgets","Corporate Directorate Development","R4308"
"Wolverhampton City Council","http://opendatacommunities.org/id/metropolitan-district-council/wolverhampton","700341","Acs Business Supplies Limited","SINV00379888","4.80","Stationery","130169723","24/05/2017","Central Corporate Budgets","Corporate Directorate Development","R4308"
"Wolverhampton City Council","http://opendatacommunities.org/id/metropolitan-district-council/wolverhampton","700341","Acs Business Supplies Limited","SINV00379888","8.10","Stationery","130169723","24/05/2017","Central Corporate Budgets","Corporate Directorate Development","R4308"
"Wolverhampton City Council","http://opendatacommunities.org/id/metropolitan-district-council/wolverhampton","700341","Acs Business Supplies Limited","SINV00379888","19.80","Stationery","130169723","24/05/2017","Central Corporate Budgets","Corporate Directorate Development","R4308"
"Wolverhampton City Council","http://opendatacommunities.org/id/metropolitan-district-council/wolverhampton","700341","Acs Business Supplies Limited","SINV00379888","62.40","Stationery","130169723","24/05/2017","Central Corporate Budgets","Corporate Directorate Development","R4308"
"Wolverhampton City Council","http://opendatacommunities.org/id/metropolitan-district-council/wolverhampton","700341","Acs Business Supplies Limited","SINV00379888","18.10","Stationery","130169723","24/05/2017","Central Corporate Budgets","Corporate Directorate Development","R4308"
"Wolverhampton City Council","http://opendatacommunities.org/id/metropolitan-district-council/wolverhampton","700341","Acs Business Supplies Limited","SINV00379888","4.47","Stationery","130169723","24/05/2017","Central Corporate Budgets","Corporate Directorate Development","R4308"
"Wolverhampton City Council","http://opendatacommunities.org/id/metropolitan-district-council/wolverhampton","700341","Acs Business Supplies Limited","SINV00379888","3.81","Stationery","130169723","24/05/2017","Central Corporate Budgets","Corporate Directorate Development","R4308"
"Wolverhampton City Council","http://opendatacommunities.org/id/metropolitan-district-council/wolverhampton","700341","Acs Business Supplies Limited","SINV00379888","42.78","Stationery","130169723","24/05/2017","Central Corporate Budgets","Corporate Directorate Development","R4308"
"Wolverhampton City Council","http://opendatacommunities.org/id/metropolitan-district-council/wolverhampton","700341","Acs Business Supplies Limited","SINV00379888","14.65","Stationery","130169723","24/05/2017","Central Corporate Budgets","Corporate Directorate Development","R4308"
"Wolverhampton City Council","http://opendatacommunities.org/id/metropolitan-district-council/wolverhampton","700341","Acs Business Supplies Limited","SINV00379888","16.45","Stationery","130169723","24/05/2017","Central Corporate Budgets","Corporate Directorate Development","R4308"
"Wolverhampton City Council","http://opendatacommunities.org/id/metropolitan-district-council/wolverhampton","700341","Acs Business Supplies Limited","SINV00379888","3.80","Stationery","130169723","24/05/2017","Central Corporate Budgets","Corporate Directorate Development","R4308"
"Wolverhampton City Council","http://opendatacommunities.org/id/metropolitan-district-council/wolverhampton","700341","Acs Business Supplies Limited","SINV00380044","32.99","Stationery","130169886","24/05/2017","Quality Assurance and Policies","Quality Assurance and Policies","R4308"
"Wolverhampton City Council","http://opendatacommunities.org/id/metropolitan-district-council/wolverhampton","700341","Acs Business Supplies Limited","SINV00380044","7.17","Stationery","130169886","24/05/2017","Quality Assurance and Policies","Quality Assurance and Policies","R4308"
"Wolverhampton City Council","http://opendatacommunities.org/id/metropolitan-district-council/wolverhampton","700341","Acs Business Supplies Limited","SINV00378159","0.78","Stationery","130168235","10/05/2017","Adult Education","Service Wide","R4308"
"Wolverhampton City Council","http://opendatacommunities.org/id/metropolitan-district-council/wolverhampton","700341","Acs Business Supplies Limited","SINV00381483","17.45","Stationery","130171078","31/05/2017","Central Corporate Budgets","Corporate Directorate Development","R4308"
"Wolverhampton City Council","http://opendatacommunities.org/id/metropolitan-district-council/wolverhampton","700341","Acs Business Supplies Limited","SCRN00046384","-19.99","Stationery","130172288","31/05/2017","Learning Disability Provider","City Links","R4308"
"Wolverhampton City Council","http://opendatacommunities.org/id/metropolitan-district-council/wolverhampton","700341","Acs Business Supplies Limited","SINV00381482","93.64","Stationery","130171077","31/05/2017","Legal Services","Legal Services","R4308"
"Wolverhampton City Council","http://opendatacommunities.org/id/metropolitan-district-council/wolverhampton","700341","Acs Business Supplies Limited","SINV00378510","55.47","Stationery","130168411","10/05/2017","Legal Services","Legal Services","R4308"
"Wolverhampton City Council","http://opendatacommunities.org/id/metropolitan-district-council/wolverhampton","700341","Acs Business Supplies Limited","SINV00381002","42.71","Stationery","130170203","24/05/2017","Early Intervention","EIP Locality 8 � Children�s Village","R4308"
"Wolverhampton City Council","http://opendatacommunities.org/id/metropolitan-district-council/wolverhampton","700341","Acs Business Supplies Limited","SINV00381002","129.90","Stationery","130170203","24/05/2017","Early Intervention","EIP Locality 8 � Children�s Village","R4308"
"Wolverhampton City Council","http://opendatacommunities.org/id/metropolitan-district-council/wolverhampton","700341","Acs Business Supplies Limited","SINV00379555","63.01","Stationery","130169719","24/05/2017","Welfare Rights & Financial Assessment","Financial Assessments","R4308"
"Wolverhampton City Council","http://opendatacommunities.org/id/metropolitan-district-council/wolverhampton","700341","Acs Business Supplies Limited","SINV00379207","9.98","Stationery","130169326","17/05/2017","Catering","Education Catering - General Overheads","R4308"
"Wolverhampton City Council","http://opendatacommunities.org/id/metropolitan-district-council/wolverhampton","700341","Acs Business Supplies Limited","SINV00379207","31.98","Stationery","130169326","17/05/2017","Catering","Education Catering - General Overheads","R4308"
"Wolverhampton City Council","http://opendatacommunities.org/id/metropolitan-district-council/wolverhampton","700341","Acs Business Supplies Limited","SINV00379207","28.52","Stationery","130169326","17/05/2017","Cleaning","Cleaning of Buildings - General","R4308"
"Wolverhampton City Council","http://opendatacommunities.org/id/metropolitan-district-council/wolverhampton","700341","Acs Business Supplies Limited","SINV00379207","11.99","Stationery","130169326","17/05/2017","Cleaning","Cleaning of Buildings - General","R4308"
"Wolverhampton City Council","http://opendatacommunities.org/id/metropolitan-district-council/wolverhampton","700341","Acs Business Supplies Limited","SINV00379207","85.34","Stationery","130169326","17/05/2017","Cleaning","Cleaning of Buildings - General","R4308"
"Wolverhampton City Council","http://opendatacommunities.org/id/metropolitan-district-council/wolverhampton","700341","Acs Business Supplies Limited","SINV00379212","3.62","Stationery","130169330","17/05/2017","Learning Disability Provider","City Links","R4308"
"Wolverhampton City Council","http://opendatacommunities.org/id/metropolitan-district-council/wolverhampton","700341","Acs Business Supplies Limited","SINV00379212","0.96","Stationery","130169330","17/05/2017","Learning Disability Provider","City Links","R4308"
"Wolverhampton City Council","http://opendatacommunities.org/id/metropolitan-district-council/wolverhampton","700341","Acs Business Supplies Limited","SINV00379212","19.99","Stationery","130169330","17/05/2017","Learning Disability Provider","City Links","R4308"
"Wolverhampton City Council","http://opendatacommunities.org/id/metropolitan-district-council/wolverhampton","700341","Acs Business Supplies Limited","SINV00379212","6.94","Stationery","130169330","17/05/2017","Learning Disability Provider","City Links","R4308"
"Wolverhampton City Council","http://opendatacommunities.org/id/metropolitan-district-council/wolverhampton","700341","Acs Business Supplies Limited","SINV00378735","462.24","Stationery","130168681","17/05/2017","Environmental Maintenance","Ground Maintenance East","R4308"
"Wolverhampton City Council","http://opendatacommunities.org/id/metropolitan-district-council/wolverhampton","700341","Acs Business Supplies Limited","SINV00379211","4.08","Stationery","130169329","17/05/2017","Safeguarding","Head of Service Quality and Safeguarding","R4308"
"Wolverhampton City Council","http://opendatacommunities.org/id/metropolitan-district-council/wolverhampton","700341","Acs Business Supplies Limited","SINV00379211","1.92","Stationery","130169329","17/05/2017","Safeguarding","Head of Service Quality and Safeguarding","R4308"
"Wolverhampton City Council","http://opendatacommunities.org/id/metropolitan-district-council/wolverhampton","700341","Acs Business Supplies Limited","SINV00379211","25.32","Stationery","130169329","17/05/2017","Safeguarding","Head of Service Quality and Safeguarding","R4308"
"Wolverhampton City Council","http://opendatacommunities.org/id/metropolitan-district-council/wolverhampton","700341","Acs Business Supplies Limited","SINV00379211","14.26","Stationery","130169329","17/05/2017","Safeguarding","Head of Service Quality and Safeguarding","R4308"
"Wolverhampton City Council","http://opendatacommunities.org/id/metropolitan-district-council/wolverhampton","700341","Acs Business Supplies Limited","SINV00379211","2.13","Stationery","130169329","17/05/2017","Safeguarding","Head of Service Quality and Safeguarding","R4308"
"Wolverhampton City Council","http://opendatacommunities.org/id/metropolitan-district-council/wolverhampton","700341","Acs Business Supplies Limited","SINV00379211","22.33","Stationery","130169329","17/05/2017","Safeguarding","Head of Service Quality and Safeguarding","R4308"
"Wolverhampton City Council","http://opendatacommunities.org/id/metropolitan-district-council/wolverhampton","700341","Acs Business Supplies Limited","SINV00379211","40.12","Stationery","130169329","17/05/2017","Safeguarding","Head of Service Quality and Safeguarding","R4308"
"Wolverhampton City Council","http://opendatacommunities.org/id/metropolitan-district-council/wolverhampton","700341","Acs Business Supplies Limited","SINV00378734","52.77","Stationery","130168680","17/05/2017","Older People Assessment & Care Management","Hospital Team","R4308"
"Wolverhampton City Council","http://opendatacommunities.org/id/metropolitan-district-council/wolverhampton","700341","Acs Business Supplies Limited","SINV00370831","129.91","Stationery","130161490","19/05/2017","Safeguarding","Head of Service Quality and Safeguarding","R4308"
"Wolverhampton City Council","http://opendatacommunities.org/id/metropolitan-district-council/wolverhampton","700341","Acs Business Supplies Limited","SINV00374550","6.00","Stationery","130166275","10/05/2017","Parking Services","Car Parks Operational Staff","R4308"
"Wolverhampton City Council","http://opendatacommunities.org/id/metropolitan-district-council/wolverhampton","700341","Acs Business Supplies Limited","SINV00381001","49.76","Stationery","130170202","24/05/2017","Independent Living Service","Independent Living Service","R4308"
"Wolverhampton City Council","http://opendatacommunities.org/id/metropolitan-district-council/wolverhampton","700341","Acs Business Supplies Limited","SINV00381001","39.99","Stationery","130170202","24/05/2017","Independent Living Service","Independent Living Service","R4308"
"Wolverhampton City Council","http://opendatacommunities.org/id/metropolitan-district-council/wolverhampton","700341","Acs Business Supplies Limited","SINV00379554","179.94","Stationery","130169718","24/05/2017","Looked After Children","Fostering Team & Allowances","R4308"
"Wolverhampton City Council","http://opendatacommunities.org/id/metropolitan-district-council/wolverhampton","700341","Acs Business Supplies Limited","SINV00380218","22.80","Stationery","130169887","24/05/2017","Specialist Support","Upper Pendeford Farm Short Breaks Centre","R4308"
"Wolverhampton City Council","http://opendatacommunities.org/id/metropolitan-district-council/wolverhampton","700341","Acs Business Supplies Limited","SINV00380218","14.22","Stationery","130169887","24/05/2017","Specialist Support","Upper Pendeford Farm Short Breaks Centre","R4308"
"Wolverhampton City Council","http://opendatacommunities.org/id/metropolitan-district-council/wolverhampton","700341","Acs Business Supplies Limited","SINV00380218","5.19","Stationery","130169887","24/05/2017","Specialist Support","Upper Pendeford Farm Short Breaks Centre","R4308"
"Wolverhampton City Council","http://opendatacommunities.org/id/metropolitan-district-council/wolverhampton","700341","Acs Business Supplies Limited","SINV00380218","14.99","Stationery","130169887","24/05/2017","Specialist Support","Upper Pendeford Farm Short Breaks Centre","R4308"
"Wolverhampton City Council","http://opendatacommunities.org/id/metropolitan-district-council/wolverhampton","700341","Acs Business Supplies Limited","SINV00380218","26.40","Stationery","130169887","24/05/2017","Specialist Support","Upper Pendeford Farm Short Breaks Centre","R4308"
"Wolverhampton City Council","http://opendatacommunities.org/id/metropolitan-district-council/wolverhampton","700341","Acs Business Supplies Limited","SINV00379887","24.31","Stationery","130169722","24/05/2017","Welfare Rights & Financial Assessment","Welfare Rights","R4308"
"Wolverhampton City Council","http://opendatacommunities.org/id/metropolitan-district-council/wolverhampton","700341","Acs Business Supplies Limited","SINV00380500","8.10","Stationery","130170201","24/05/2017","Looked After Children","Adoption and Residence Team & Allowances","R4308"
"Wolverhampton City Council","http://opendatacommunities.org/id/metropolitan-district-council/wolverhampton","700341","Acs Business Supplies Limited","SINV00380500","3.80","Stationery","130170201","24/05/2017","Looked After Children","Adoption and Residence Team & Allowances","R4308"
"Wolverhampton City Council","http://opendatacommunities.org/id/metropolitan-district-council/wolverhampton","700341","Acs Business Supplies Limited","SINV00380500","2.24","Stationery","130170201","24/05/2017","Looked After Children","Adoption and Residence Team & Allowances","R4308"
"Wolverhampton City Council","http://opendatacommunities.org/id/metropolitan-district-council/wolverhampton","700341","Acs Business Supplies Limited","SINV00380500","11.38","Stationery","130170201","24/05/2017","Looked After Children","Adoption and Residence Team & Allowances","R4308"
"Wolverhampton City Council","http://opendatacommunities.org/id/metropolitan-district-council/wolverhampton","700341","Acs Business Supplies Limited","SINV00380043","150.20","Stationery","130169885","24/05/2017","Strategic Director Place","Business Manager - Place","R4308"
"Wolverhampton City Council","http://opendatacommunities.org/id/metropolitan-district-council/wolverhampton","700341","Acs Business Supplies Limited","SINV00378507","16.80","Stationery","130168408","10/05/2017","Looked After Children","LAC Transitions Team","R4308"
"Wolverhampton City Council","http://opendatacommunities.org/id/metropolitan-district-council/wolverhampton","700341","Acs Business Supplies Limited","SINV00378507","19.80","Stationery","130168408","10/05/2017","Looked After Children","LAC Transitions Team","R4308"
"Wolverhampton City Council","http://opendatacommunities.org/id/metropolitan-district-council/wolverhampton","700341","Acs Business Supplies Limited","SINV00378507","71.68","Stationery","130168408","10/05/2017","Looked After Children","LAC Transitions Team","R4308"
"Wolverhampton City Council","http://opendatacommunities.org/id/metropolitan-district-council/wolverhampton","700341","Acs Business Supplies Limited","SINV00378507","28.52","Stationery","130168408","10/05/2017","Looked After Children","LAC Transitions Team","R4308"
"Wolverhampton City Council","http://opendatacommunities.org/id/metropolitan-district-council/wolverhampton","700341","Acs Business Supplies Limited","SINV00378507","8.94","Stationery","130168408","10/05/2017","Looked After Children","LAC Transitions Team","R4308"
"Wolverhampton City Council","http://opendatacommunities.org/id/metropolitan-district-council/wolverhampton","700341","Acs Business Supplies Limited","SINV00378507","7.62","Stationery","130168408","10/05/2017","Looked After Children","LAC Transitions Team","R4308"
"Wolverhampton City Council","http://opendatacommunities.org/id/metropolitan-district-council/wolverhampton","700341","Acs Business Supplies Limited","SINV00378507","29.98","Stationery","130168408","10/05/2017","Looked After Children","LAC Transitions Team","R4308"
"Wolverhampton City Council","http://opendatacommunities.org/id/metropolitan-district-council/wolverhampton","700341","Acs Business Supplies Limited","SINV00378511","114.03","Stationery","130168412","10/05/2017","Inclusion Support","Inclusion Support","R4308"
"Wolverhampton City Council","http://opendatacommunities.org/id/metropolitan-district-council/wolverhampton","700341","Acs Business Supplies Limited","SINV00378509","3.15","Stationery","130168410","10/05/2017","Fleet Services","Fleet Management","R4308"
"Wolverhampton City Council","http://opendatacommunities.org/id/metropolitan-district-council/wolverhampton","700341","Acs Business Supplies Limited","SINV00379208","69.99","Stationery","130169327","17/05/2017","Quality Assurance and Policies","Quality Assurance and Policies","R4308"
"Wolverhampton City Council","http://opendatacommunities.org/id/metropolitan-district-council/wolverhampton","700341","Acs Business Supplies Limited","SINV00381484","23.38","Stationery","130171079","31/05/2017","Democratic Services","Register Office","R4308"
"Wolverhampton City Council","http://opendatacommunities.org/id/metropolitan-district-council/wolverhampton","700341","Acs Business Supplies Limited","SINV00381485","12.66","Stationery","130171080","31/05/2017","Bereavement Services","Cemeteries","R4308"
"Wolverhampton City Council","http://opendatacommunities.org/id/metropolitan-district-council/wolverhampton","700341","Acs Business Supplies Limited","SINV00380218","17.99","Stationery","130169887","24/05/2017","Specialist Support","Upper Pendeford Farm Short Breaks Centre","R4308"
"Wolverhampton City Council","http://opendatacommunities.org/id/metropolitan-district-council/wolverhampton","700341","Acs Business Supplies Limited","SINV00380218","6.33","Stationery","130169887","24/05/2017","Specialist Support","Upper Pendeford Farm Short Breaks Centre","R4308"
"Wolverhampton City Council","http://opendatacommunities.org/id/metropolitan-district-council/wolverhampton","700363","Act Now Training Limited","20795","285.00","Training Expenses","130169515","24/05/2017","Human Resources","Centralised Training","R1650"
"Wolverhampton City Council","http://opendatacommunities.org/id/metropolitan-district-council/wolverhampton","700604","P Kitterick","00027","1,150.00","TPP - Maintenance Contractor - General","190335399","10/05/2017","Parking Services","Cycling Schemes - Bikeability","R5720"
"Wolverhampton City Council","http://opendatacommunities.org/id/metropolitan-district-council/wolverhampton","700663","Partisip8/P Sicilia","725/1","60.00","TPP - Maintenance Contractor - General","190335396","10/05/2017","Parking Services","Cycling Schemes - Training West Midlands","R5720"
"Wolverhampton City Council","http://opendatacommunities.org/id/metropolitan-district-council/wolverhampton","700663","Partisip8/P Sicilia","725","1,880.00","TPP - Maintenance Contractor - General","190335395","10/05/2017","Parking Services","Cycling Schemes - Bikeability","R5720"
"Wolverhampton City Council","http://opendatacommunities.org/id/metropolitan-district-council/wolverhampton","700684","Philip Lay","0017","1,270.00","TPP - Maintenance Contractor - General","190335398","10/05/2017","Parking Services","Cycling Schemes - Bikeability","R5720"
"Wolverhampton City Council","http://opendatacommunities.org/id/metropolitan-district-council/wolverhampton","700693","Adept Security Systems Limited","24911","185.00","Equipment - R & M","190333680","05/05/2017","Fleet Services","Fleet Management","R4003"
"Wolverhampton City Council","http://opendatacommunities.org/id/metropolitan-district-council/wolverhampton","700761","R Millard","37","60.00","TPP - Maintenance Contractor - General","190335390","10/05/2017","Parking Services","Cycling Schemes - Bikeability","R5720"
"Wolverhampton City Council","http://opendatacommunities.org/id/metropolitan-district-council/wolverhampton","700761","R Millard","37/1","62.50","Services - Professional Fees","190335391","10/05/2017","Parking Services","Advisory Road Markings and Disabled Bays","R4400"
"Wolverhampton City Council","http://opendatacommunities.org/id/metropolitan-district-council/wolverhampton","700762","R Millington","00029","750.00","TPP - Maintenance Contractor - General","190335392","10/05/2017","Parking Services","Cycling Schemes - Bikeability","R5720"
"Wolverhampton City Council","http://opendatacommunities.org/id/metropolitan-district-council/wolverhampton","700770","Adt Fire And Security PLC","32536058 - 02","-50.00","Fixtures and Fittings - R&M","130123964","03/05/2017","Visitor Economy","Art Gallery","R2502"
"Wolverhampton City Council","http://opendatacommunities.org/id/metropolitan-district-council/wolverhampton","700770","Adt Fire And Security PLC","32267526 - 02","242.96","Fixtures and Fittings - R&M","130169331","03/05/2017","Visitor Economy","Art Gallery","R2502"
"Wolverhampton City Council","http://opendatacommunities.org/id/metropolitan-district-council/wolverhampton","700770","Adt Fire And Security PLC","34034690 - 02","194.00","Fixtures and Fittings - R&M","130169093","03/05/2017","Maintenance Programme","Centralised R&M","R2502"
"Wolverhampton City Council","http://opendatacommunities.org/id/metropolitan-district-council/wolverhampton","700770","Adt Fire And Security PLC","35286080-02","79.50","Fixtures and Fittings - R&M","130172542","24/05/2017","Facilities Management","Caretakers Community Centre","R2502"
"Wolverhampton City Council","http://opendatacommunities.org/id/metropolitan-district-council/wolverhampton","700770","Adt Fire And Security PLC","35287926 - 02","259.00","Fixtures and Fittings - R&M","130172543","24/05/2017","Facilities Management","Caretakers Community Centre","R2502"
"Wolverhampton City Council","http://opendatacommunities.org/id/metropolitan-district-council/wolverhampton","700770","Adt Fire And Security PLC","35297085-02","79.50","Fixtures and Fittings - R&M","130172544","24/05/2017","Facilities Management","Caretakers Community Centre","R2502"
"Wolverhampton City Council","http://opendatacommunities.org/id/metropolitan-district-council/wolverhampton","700770","Adt Fire And Security PLC","35502793 02","339.01","Fixtures and Fittings - R&M","130172547","26/05/2017","Facilities Management","Caretakers Community Centre","R2502"
"Wolverhampton City Council","http://opendatacommunities.org/id/metropolitan-district-council/wolverhampton","700770","Adt Fire And Security PLC","34638251 - 02","84.61","R&M - Departmental planned (external)","130170907","17/05/2017","Facilities Management","Caretakers Community Centre","R2001"
"Wolverhampton City Council","http://opendatacommunities.org/id/metropolitan-district-council/wolverhampton","700770","Adt Fire And Security PLC","35257060 - 02","306.20","Fixtures and Fittings - R&M","130169516","03/05/2017","Maintenance Programme","Centralised R&M","R2502"
"Wolverhampton City Council","http://opendatacommunities.org/id/metropolitan-district-council/wolverhampton","700770","Adt Fire And Security PLC","330982.94 - .02.","502.18","Services - Security","130170639","10/05/2017","Maintenance Programme","Centralised R&M","R4405"
"Wolverhampton City Council","http://opendatacommunities.org/id/metropolitan-district-council/wolverhampton","700770","Adt Fire And Security PLC","35240942 - 02","248.56","Fixtures and Fittings - R&M","130170432","10/05/2017","Visitor Economy","Makers Dozen","R2502"
"Wolverhampton City Council","http://opendatacommunities.org/id/metropolitan-district-council/wolverhampton","700770","Adt Fire And Security PLC","35281436 - 02","85.00","Fixtures and Fittings - R&M","130170433","10/05/2017","Maintenance Programme","Centralised R&M","R2502"
"Wolverhampton City Council","http://opendatacommunities.org/id/metropolitan-district-council/wolverhampton","700770","Adt Fire And Security PLC","35502263 - 02","533.22","Fixtures and Fittings - R&M","130172545","26/05/2017","Bereavement Services","Cemeteries","R2502"
"Wolverhampton City Council","http://opendatacommunities.org/id/metropolitan-district-council/wolverhampton","700770","Adt Fire And Security PLC","35502264 - 02","532.24","Fixtures and Fittings - R&M","130172546","26/05/2017","Bereavement Services","Cemeteries","R2502"
"Wolverhampton City Council","http://opendatacommunities.org/id/metropolitan-district-council/wolverhampton","700979","Af Blakemore/Blakemore Foodservice","WCC000255","33.79","Provisions (Not for resale)","130168416","17/05/2017","Leisure Services","WV Active Catering","R4101"
"Wolverhampton City Council","http://opendatacommunities.org/id/metropolitan-district-council/wolverhampton","700979","Af Blakemore/Blakemore Foodservice","5452082","104.82","Provisions (Not for resale)","130169727","19/05/2017","Learning Disability Provider","Duke Street Bungalows","R4101"
"Wolverhampton City Council","http://opendatacommunities.org/id/metropolitan-district-council/wolverhampton","700979","Af Blakemore/Blakemore Foodservice","5452082","-104.82","Provisions (Not for resale)","130169727","19/05/2017","Learning Disability Provider","Duke Street Bungalows","R4101"
"Wolverhampton City Council","http://opendatacommunities.org/id/metropolitan-district-council/wolverhampton","700979","Af Blakemore/Blakemore Foodservice","5452082","104.82","Provisions (Not for resale)","130169727","19/05/2017","Learning Disability Provider","Duke Street Bungalows","R4101"
"Wolverhampton City Council","http://opendatacommunities.org/id/metropolitan-district-council/wolverhampton","700979","Af Blakemore/Blakemore Foodservice","5451781","81.92","Provisions (Not for resale)","130169726","17/05/2017","Older People Provider Services","Blakenhall Resource Centre","R4101"
"Wolverhampton City Council","http://opendatacommunities.org/id/metropolitan-district-council/wolverhampton","700979","Af Blakemore/Blakemore Foodservice","5440090","37.06","Provisions (Resale)","130171960","24/05/2017","Catering","Education Catering - General Overheads","R4102"
"Wolverhampton City Council","http://opendatacommunities.org/id/metropolitan-district-council/wolverhampton","700979","Af Blakemore/Blakemore Foodservice","5434583","175.77","Provisions (Not for resale)","130171957","24/05/2017","Learning Disability Provider","Duke Street Bungalows","R4101"
"Wolverhampton City Council","http://opendatacommunities.org/id/metropolitan-district-council/wolverhampton","700979","Af Blakemore/Blakemore Foodservice","5434583","7.19","Provisions (Not for resale)","130171957","24/05/2017","Learning Disability Provider","Duke Street Bungalows","R4101"
"Wolverhampton City Council","http://opendatacommunities.org/id/metropolitan-district-council/wolverhampton","700979","Af Blakemore/Blakemore Foodservice","WCC000253","247.51","Provisions (Not for resale)","130168415","17/05/2017","Leisure Services","WV Active Catering - Central","R4101"
"Wolverhampton City Council","http://opendatacommunities.org/id/metropolitan-district-council/wolverhampton","700979","Af Blakemore/Blakemore Foodservice","WCC000253","637.64","Provisions (Not for resale)","130168415","17/05/2017","Leisure Services","WV Active Catering - Central","R4101"
"Wolverhampton City Council","http://opendatacommunities.org/id/metropolitan-district-council/wolverhampton","700979","Af Blakemore/Blakemore Foodservice","5452537","211.91","Provisions (Not for resale)","130169730","17/05/2017","Learning Disability Provider","Duke Street Bungalows","R4101"
"Wolverhampton City Council","http://opendatacommunities.org/id/metropolitan-district-council/wolverhampton","700979","Af Blakemore/Blakemore Foodservice","5452537","-211.91","Provisions (Not for resale)","130169730","17/05/2017","Learning Disability Provider","Duke Street Bungalows","R4101"
"Wolverhampton City Council","http://opendatacommunities.org/id/metropolitan-district-council/wolverhampton","700979","Af Blakemore/Blakemore Foodservice","5452537","9.10","Provisions (Not for resale)","130169730","17/05/2017","Learning Disability Provider","Duke Street Bungalows","R4101"
"Wolverhampton City Council","http://opendatacommunities.org/id/metropolitan-district-council/wolverhampton","700979","Af Blakemore/Blakemore Foodservice","5452537","202.81","Provisions (Not for resale)","130169730","17/05/2017","Learning Disability Provider","Duke Street Bungalows","R4101"
"Wolverhampton City Council","http://opendatacommunities.org/id/metropolitan-district-council/wolverhampton","700979","Af Blakemore/Blakemore Foodservice","5385903","-286.83","Provisions (Resale)","130165990","03/05/2017","Visitor Economy","Art Gallery Tea Room","R4102"
"Wolverhampton City Council","http://opendatacommunities.org/id/metropolitan-district-council/wolverhampton","700979","Af Blakemore/Blakemore Foodservice","5385903","123.35","Provisions (Resale)","130165990","03/05/2017","Visitor Economy","Art Gallery Tea Room","R4102"
"Wolverhampton City Council","http://opendatacommunities.org/id/metropolitan-district-council/wolverhampton","700979","Af Blakemore/Blakemore Foodservice","5385903","163.48","Provisions (Resale)","130165990","03/05/2017","Visitor Economy","Art Gallery Tea Room","R4102"
"Wolverhampton City Council","http://opendatacommunities.org/id/metropolitan-district-council/wolverhampton","700979","Af Blakemore/Blakemore Foodservice","5409106","361.12","Provisions (Resale)","130166000","03/05/2017","Visitor Economy","Art Gallery Tea Room","R4102"
"Wolverhampton City Council","http://opendatacommunities.org/id/metropolitan-district-council/wolverhampton","700979","Af Blakemore/Blakemore Foodservice","5409106","-361.12","Provisions (Resale)","130166000","03/05/2017","Visitor Economy","Art Gallery Tea Room","R4102"
"Wolverhampton City Council","http://opendatacommunities.org/id/metropolitan-district-council/wolverhampton","700979","Af Blakemore/Blakemore Foodservice","5409106","220.34","Provisions (Resale)","130166000","03/05/2017","Visitor Economy","Art Gallery Tea Room","R4102"
"Wolverhampton City Council","http://opendatacommunities.org/id/metropolitan-district-council/wolverhampton","700979","Af Blakemore/Blakemore Foodservice","5409106","140.78","Provisions (Resale)","130166000","03/05/2017","Visitor Economy","Art Gallery Tea Room","R4102"
"Wolverhampton City Council","http://opendatacommunities.org/id/metropolitan-district-council/wolverhampton","700979","Af Blakemore/Blakemore Foodservice","5385903","286.83","Provisions (Resale)","130165990","03/05/2017","Visitor Economy","Art Gallery Tea Room","R4102"
"Wolverhampton City Council","http://opendatacommunities.org/id/metropolitan-district-council/wolverhampton","700979","Af Blakemore/Blakemore Foodservice","WCC000255","269.65","Provisions (Not for resale)","130168416","17/05/2017","Leisure Services","WV Active Catering","R4101"
"Wolverhampton City Council","http://opendatacommunities.org/id/metropolitan-district-council/wolverhampton","700979","Af Blakemore/Blakemore Foodservice","5394061","53.74","Provisions (Resale)","130165995","03/05/2017","Visitor Economy","Bantock - Tea Rooms","R4102"
"Wolverhampton City Council","http://opendatacommunities.org/id/metropolitan-district-council/wolverhampton","700979","Af Blakemore/Blakemore Foodservice","5377713","26.26","Provisions (Resale)","130165986","03/05/2017","Visitor Economy","Art Gallery Tea Room","R4102"
"Wolverhampton City Council","http://opendatacommunities.org/id/metropolitan-district-council/wolverhampton","700979","Af Blakemore/Blakemore Foodservice","5394061","320.32","Provisions (Resale)","130165995","03/05/2017","Visitor Economy","Bantock - Tea Rooms","R4102"
"Wolverhampton City Council","http://opendatacommunities.org/id/metropolitan-district-council/wolverhampton","700979","Af Blakemore/Blakemore Foodservice","5394061","-374.06","Provisions (Resale)","130165995","03/05/2017","Visitor Economy","Bantock - Tea Rooms","R4102"
"Wolverhampton City Council","http://opendatacommunities.org/id/metropolitan-district-council/wolverhampton","700979","Af Blakemore/Blakemore Foodservice","5394061","374.06","Provisions (Resale)","130165995","03/05/2017","Visitor Economy","Bantock - Tea Rooms","R4102"
"Wolverhampton City Council","http://opendatacommunities.org/id/metropolitan-district-council/wolverhampton","700979","Af Blakemore/Blakemore Foodservice","5417841","153.82","Provisions (Resale)","130166008","03/05/2017","Visitor Economy","Art Gallery Tea Room","R4102"
"Wolverhampton City Council","http://opendatacommunities.org/id/metropolitan-district-council/wolverhampton","700979","Af Blakemore/Blakemore Foodservice","5417841","266.70","Provisions (Resale)","130166008","03/05/2017","Visitor Economy","Art Gallery Tea Room","R4102"
"Wolverhampton City Council","http://opendatacommunities.org/id/metropolitan-district-council/wolverhampton","700979","Af Blakemore/Blakemore Foodservice","5417841","420.52","Provisions (Resale)","130166008","03/05/2017","Visitor Economy","Art Gallery Tea Room","R4102"
"Wolverhampton City Council","http://opendatacommunities.org/id/metropolitan-district-council/wolverhampton","700979","Af Blakemore/Blakemore Foodservice","5410664","192.24","Provisions (Resale)","130166004","03/05/2017","Visitor Economy","Bantock - Tea Rooms","R4102"
"Wolverhampton City Council","http://opendatacommunities.org/id/metropolitan-district-council/wolverhampton","700979","Af Blakemore/Blakemore Foodservice","5410664","128.45","Provisions (Resale)","130166004","03/05/2017","Visitor Economy","Bantock - Tea Rooms","R4102"
"Wolverhampton City Council","http://opendatacommunities.org/id/metropolitan-district-council/wolverhampton","700979","Af Blakemore/Blakemore Foodservice","5410664","-320.69","Provisions (Resale)","130166004","03/05/2017","Visitor Economy","Bantock - Tea Rooms","R4102"
"Wolverhampton City Council","http://opendatacommunities.org/id/metropolitan-district-council/wolverhampton","700979","Af Blakemore/Blakemore Foodservice","5410664","320.69","Provisions (Resale)","130166004","03/05/2017","Visitor Economy","Bantock - Tea Rooms","R4102"
"Wolverhampton City Council","http://opendatacommunities.org/id/metropolitan-district-council/wolverhampton","700979","Af Blakemore/Blakemore Foodservice","5417841","-420.52","Provisions (Resale)","130166008","03/05/2017","Visitor Economy","Art Gallery Tea Room","R4102"
"Wolverhampton City Council","http://opendatacommunities.org/id/metropolitan-district-council/wolverhampton","700979","Af Blakemore/Blakemore Foodservice","5429284","104.98","Provisions (Resale)","130166014","03/05/2017","Visitor Economy","Bantock - Tea Rooms","R4102"
"Wolverhampton City Council","http://opendatacommunities.org/id/metropolitan-district-council/wolverhampton","700979","Af Blakemore/Blakemore Foodservice","5429284","231.83","Provisions (Resale)","130166014","03/05/2017","Visitor Economy","Bantock - Tea Rooms","R4102"
"Wolverhampton City Council","http://opendatacommunities.org/id/metropolitan-district-council/wolverhampton","700979","Af Blakemore/Blakemore Foodservice","5429284","-336.81","Provisions (Resale)","130166014","03/05/2017","Visitor Economy","Bantock - Tea Rooms","R4102"
"Wolverhampton City Council","http://opendatacommunities.org/id/metropolitan-district-council/wolverhampton","700979","Af Blakemore/Blakemore Foodservice","5429284","336.81","Provisions (Resale)","130166014","03/05/2017","Visitor Economy","Bantock - Tea Rooms","R4102"
"Wolverhampton City Council","http://opendatacommunities.org/id/metropolitan-district-council/wolverhampton","700979","Af Blakemore/Blakemore Foodservice","5400520","150.23","Provisions (Resale)","130165997","03/05/2017","Visitor Economy","Art Gallery Tea Room","R4102"
"Wolverhampton City Council","http://opendatacommunities.org/id/metropolitan-district-council/wolverhampton","700979","Af Blakemore/Blakemore Foodservice","5419266","198.57","Provisions (Resale)","130166010","03/05/2017","Visitor Economy","Bantock - Tea Rooms","R4102"
"Wolverhampton City Council","http://opendatacommunities.org/id/metropolitan-district-council/wolverhampton","700979","Af Blakemore/Blakemore Foodservice","5419266","-198.57","Provisions (Resale)","130166010","03/05/2017","Visitor Economy","Bantock - Tea Rooms","R4102"
"Wolverhampton City Council","http://opendatacommunities.org/id/metropolitan-district-council/wolverhampton","700979","Af Blakemore/Blakemore Foodservice","5419266","124.50","Provisions (Resale)","130166010","03/05/2017","Visitor Economy","Bantock - Tea Rooms","R4102"
"Wolverhampton City Council","http://opendatacommunities.org/id/metropolitan-district-council/wolverhampton","700979","Af Blakemore/Blakemore Foodservice","5370897","181.38","Provisions (Resale)","130165984","03/05/2017","Visitor Economy","Bantock - Tea Rooms","R4102"
"Wolverhampton City Council","http://opendatacommunities.org/id/metropolitan-district-council/wolverhampton","700979","Af Blakemore/Blakemore Foodservice","5419266","74.07","Provisions (Resale)","130166010","03/05/2017","Visitor Economy","Bantock - Tea Rooms","R4102"
"Wolverhampton City Council","http://opendatacommunities.org/id/metropolitan-district-council/wolverhampton","700979","Af Blakemore/Blakemore Foodservice","5370897","252.43","Provisions (Resale)","130165984","03/05/2017","Visitor Economy","Bantock - Tea Rooms","R4102"
"Wolverhampton City Council","http://opendatacommunities.org/id/metropolitan-district-council/wolverhampton","700979","Af Blakemore/Blakemore Foodservice","5370897","-252.43","Provisions (Resale)","130165984","03/05/2017","Visitor Economy","Bantock - Tea Rooms","R4102"
"Wolverhampton City Council","http://opendatacommunities.org/id/metropolitan-district-council/wolverhampton","700979","Af Blakemore/Blakemore Foodservice","5377713","113.55","Provisions (Resale)","130165986","03/05/2017","Visitor Economy","Art Gallery Tea Room","R4102"
"Wolverhampton City Council","http://opendatacommunities.org/id/metropolitan-district-council/wolverhampton","700979","Af Blakemore/Blakemore Foodservice","5377713","-113.55","Provisions (Resale)","130165986","03/05/2017","Visitor Economy","Art Gallery Tea Room","R4102"
"Wolverhampton City Council","http://opendatacommunities.org/id/metropolitan-district-council/wolverhampton","700979","Af Blakemore/Blakemore Foodservice","5377713","87.29","Provisions (Resale)","130165986","03/05/2017","Visitor Economy","Art Gallery Tea Room","R4102"
"Wolverhampton City Council","http://opendatacommunities.org/id/metropolitan-district-council/wolverhampton","700979","Af Blakemore/Blakemore Foodservice","5400520","426.62","Provisions (Resale)","130165997","03/05/2017","Visitor Economy","Art Gallery Tea Room","R4102"
"Wolverhampton City Council","http://opendatacommunities.org/id/metropolitan-district-council/wolverhampton","700979","Af Blakemore/Blakemore Foodservice","5370897","71.05","Provisions (Resale)","130165984","03/05/2017","Visitor Economy","Bantock - Tea Rooms","R4102"
"Wolverhampton City Council","http://opendatacommunities.org/id/metropolitan-district-council/wolverhampton","700979","Af Blakemore/Blakemore Foodservice","5379290","254.26","Provisions (Resale)","130165988","03/05/2017","Visitor Economy","Bantock - Tea Rooms","R4102"
"Wolverhampton City Council","http://opendatacommunities.org/id/metropolitan-district-council/wolverhampton","700979","Af Blakemore/Blakemore Foodservice","5379290","-254.26","Provisions (Resale)","130165988","03/05/2017","Visitor Economy","Bantock - Tea Rooms","R4102"
"Wolverhampton City Council","http://opendatacommunities.org/id/metropolitan-district-council/wolverhampton","700979","Af Blakemore/Blakemore Foodservice","5379290","187.41","Provisions (Resale)","130165988","03/05/2017","Visitor Economy","Bantock - Tea Rooms","R4102"
"Wolverhampton City Council","http://opendatacommunities.org/id/metropolitan-district-council/wolverhampton","700979","Af Blakemore/Blakemore Foodservice","5379290","66.85","Provisions (Resale)","130165988","03/05/2017","Visitor Economy","Bantock - Tea Rooms","R4102"
"Wolverhampton City Council","http://opendatacommunities.org/id/metropolitan-district-council/wolverhampton","700979","Af Blakemore/Blakemore Foodservice","5400520","-426.62","Provisions (Resale)","130165997","03/05/2017","Visitor Economy","Art Gallery Tea Room","R4102"
"Wolverhampton City Council","http://opendatacommunities.org/id/metropolitan-district-council/wolverhampton","700979","Af Blakemore/Blakemore Foodservice","5400520","276.39","Provisions (Resale)","130165997","03/05/2017","Visitor Economy","Art Gallery Tea Room","R4102"
"Wolverhampton City Council","http://opendatacommunities.org/id/metropolitan-district-council/wolverhampton","700979","Af Blakemore/Blakemore Foodservice","WCA000040","334.51","Provisions (Not for resale)","130168414","17/05/2017","Leisure Services","WV Active Catering","R4101"
"Wolverhampton City Council","http://opendatacommunities.org/id/metropolitan-district-council/wolverhampton","700979","Af Blakemore/Blakemore Foodservice","WCA000040","1,235.43","Provisions (Not for resale)","130168414","17/05/2017","Leisure Services","WV Active Catering","R4101"
"Wolverhampton City Council","http://opendatacommunities.org/id/metropolitan-district-council/wolverhampton","700979","Af Blakemore/Blakemore Foodservice","5462868","-61.44","Provisions (Not for resale)","130171974","19/05/2017","Older People Provider Services","Blakenhall Resource Centre","R4101"
"Wolverhampton City Council","http://opendatacommunities.org/id/metropolitan-district-council/wolverhampton","700979","Af Blakemore/Blakemore Foodservice","5468763","5.28","Provisions (Resale)","130171355","31/05/2017","Parking Services","Shopmobility","R4102"
"Wolverhampton City Council","http://opendatacommunities.org/id/metropolitan-district-council/wolverhampton","701045","After Adoption","6422","8,182.50","Services - Professional Fees","130173131","31/05/2017","Looked After Children","Adoption and Residence Team & Allowances","R4400"
"Wolverhampton City Council","http://opendatacommunities.org/id/metropolitan-district-council/wolverhampton","701155","Aidapt Bathrooms Limited","291330","1,645.00","Equipment - Purchase","130172291","24/05/2017","Independent Living Service","Independent Living Service","R4000"
"Wolverhampton City Council","http://opendatacommunities.org/id/metropolitan-district-council/wolverhampton","701155","Aidapt Bathrooms Limited","291329","49.50","Equipment - Purchase","130172290","31/05/2017","Independent Living Service","Independent Living Service","R4000"
"Wolverhampton City Council","http://opendatacommunities.org/id/metropolitan-district-council/wolverhampton","701166","Aidservice Limited","92363","170.00","Equipment - Purchase","130170655","10/05/2017","Independent Living Service","Independent Living Service","R4000"
"Wolverhampton City Council","http://opendatacommunities.org/id/metropolitan-district-council/wolverhampton","701166","Aidservice Limited","92363","153.00","Equipment - Purchase","130170655","10/05/2017","Independent Living Service","Independent Living Service","R4000"
"Wolverhampton City Council","http://opendatacommunities.org/id/metropolitan-district-council/wolverhampton","701166","Aidservice Limited","92363","12.00","Equipment - Purchase","130170655","10/05/2017","Independent Living Service","Independent Living Service","R4000"
"Wolverhampton City Council","http://opendatacommunities.org/id/metropolitan-district-council/wolverhampton","701265","Airport Express West Midlands Limited","1516","500.00","Client Transport","130169888","10/05/2017","School Planning & Resources","Special - Transport","R3042"
"Wolverhampton City Council","http://opendatacommunities.org/id/metropolitan-district-council/wolverhampton","701276","Airport-Link","BDW063","855.00","Client Transport","130170437","17/05/2017","Schools","Pupil Referral Units ISB","R3042"
"Wolverhampton City Council","http://opendatacommunities.org/id/metropolitan-district-council/wolverhampton","701276","Airport-Link","BDW064","855.00","Client Transport","130170438","17/05/2017","Schools","Pupil Referral Units ISB","R3042"
"Wolverhampton City Council","http://opendatacommunities.org/id/metropolitan-district-council/wolverhampton","701342","AKW Medi-Care Limited","1482121","366.00","Adaptations","130170908","12/05/2017","Independent Living Service","Independent Living Service","R4411"
"Wolverhampton City Council","http://opendatacommunities.org/id/metropolitan-district-council/wolverhampton","701342","AKW Medi-Care Limited","1482121","308.00","Adaptations","130170908","12/05/2017","Independent Living Service","Independent Living Service","R4411"
"Wolverhampton City Council","http://opendatacommunities.org/id/metropolitan-district-council/wolverhampton","701388","Albrighton Medical Practice","FOS0324","91.48","Services - Professional Fees","190341157","31/05/2017","Looked After Children","Fostering Team & Allowances","R4400"
"Wolverhampton City Council","http://opendatacommunities.org/id/metropolitan-district-council/wolverhampton","701388","Albrighton Medical Practice","FOS0323","91.48","Services - Professional Fees","190341156","31/05/2017","Looked After Children","Fostering Team & Allowances","R4400"
"Wolverhampton City Council","http://opendatacommunities.org/id/metropolitan-district-council/wolverhampton","701393","Aldersley Church Early Learning Committee","TFT Summer 2017 Inst 1","3,282.34","Grant Payments","190335917","12/05/2017","Early Years","Early Years Entitlement Funding for Disadvantaged 2 Year Olds","R4700"
"Wolverhampton City Council","http://opendatacommunities.org/id/metropolitan-district-council/wolverhampton","701393","Aldersley Church Early Learning Committee","NEF Summer 2017 INST 1","8,721.00","TPP - Private Nursery Education Funding","190335924","12/05/2017","Early Years","Early Years Universal Entitlement for 3 and 4 Year Olds","R5035"
"Wolverhampton City Council","http://opendatacommunities.org/id/metropolitan-district-council/wolverhampton","701397","Aldridge Trimming","26742","90.00","Equipment - Purchase","190338413","19/05/2017","Fleet Services","Fleet Management","R4000"
"Wolverhampton City Council","http://opendatacommunities.org/id/metropolitan-district-council/wolverhampton","701405","Alfred Bagnall & Sons (Mids) Limited","16219","315.50","Construction and Conversion","130170656","17/05/2017","","Schools Devolved Formula Capital","C1100"
"Wolverhampton City Council","http://opendatacommunities.org/id/metropolitan-district-council/wolverhampton","701408","Alice Whyley Creative Wonderland","ES33","1,500.00","Services - Consultants","130172292","24/05/2017","School Planning & Resources","Technical Support","R4404"
"Wolverhampton City Council","http://opendatacommunities.org/id/metropolitan-district-council/wolverhampton","701408","Alice Whyley Creative Wonderland","HSAPRIL17","1,400.00","Services - Professional Fees","130170217","31/05/2017","Mental Health Commissioning","Headstart Phase 3","R4400"
"Wolverhampton City Council","http://opendatacommunities.org/id/metropolitan-district-council/wolverhampton","701417","All Saints Action Network Limited","TFT Summer 2017 Inst 1","15,279.84","Grant Payments","190335917","12/05/2017","Early Years","Early Years Entitlement Funding for Disadvantaged 2 Year Olds","R4700"
"Wolverhampton City Council","http://opendatacommunities.org/id/metropolitan-district-council/wolverhampton","701417","All Saints Action Network Limited","NEF Summer 2017 INST 1","17,480.25","TPP - Private Nursery Education Funding","190335924","12/05/2017","Early Years","Early Years Universal Entitlement for 3 and 4 Year Olds","R5035"
"Wolverhampton City Council","http://opendatacommunities.org/id/metropolitan-district-council/wolverhampton","701439","Allstar Business Solutions Limited","E2008221702","92.78","Petrol","190333697","05/05/2017","Fleet Services","Fleet Management","R3000"
"Wolverhampton City Council","http://opendatacommunities.org/id/metropolitan-district-council/wolverhampton","701439","Allstar Business Solutions Limited","E2008216712","1,157.90","Petrol","190333696","05/05/2017","Fleet Services","Fleet Management","R3000"
"Wolverhampton City Council","http://opendatacommunities.org/id/metropolitan-district-council/wolverhampton","701439","Allstar Business Solutions Limited","E2008216712","120.85","Petrol","190333696","05/05/2017","Fleet Services","Fleet Management","R3000"
"Wolverhampton City Council","http://opendatacommunities.org/id/metropolitan-district-council/wolverhampton","701439","Allstar Business Solutions Limited","E2008163997","1,136.17","Petrol","190333694","05/05/2017","Fleet Services","Fleet Management","R3000"
"Wolverhampton City Council","http://opendatacommunities.org/id/metropolitan-district-council/wolverhampton","701439","Allstar Business Solutions Limited","E2008165195","24.43","Petrol","190333695","05/05/2017","Fleet Services","Fleet Management","R3000"
"Wolverhampton City Council","http://opendatacommunities.org/id/metropolitan-district-council/wolverhampton","701439","Allstar Business Solutions Limited","E2008277634","33.36","Petrol","190339673","24/05/2017","Fleet Services","Fleet Management","R3000"
"Wolverhampton City Council","http://opendatacommunities.org/id/metropolitan-district-council/wolverhampton","701439","Allstar Business Solutions Limited","E2008277634","1,081.48","Petrol","190339673","24/05/2017","Fleet Services","Fleet Management","R3000"
"Wolverhampton City Council","http://opendatacommunities.org/id/metropolitan-district-council/wolverhampton","701448","Alphatec 2000 Limited","8718","180.00","Equipment - R & M","130171737","31/05/2017","ICTS","Document Centre - General","R4003"
"Wolverhampton City Council","http://opendatacommunities.org/id/metropolitan-district-council/wolverhampton","701459","Alzheimer�S Society","Centaur Media","100.00","Services - Professional Fees","190333740","05/05/2017","Legal Services","Legal Services","R4400"
"Wolverhampton City Council","http://opendatacommunities.org/id/metropolitan-district-council/wolverhampton","701509","Angel Springs Limited","3659737","29.74","Provisions (Not for resale)","130170658","26/05/2017","Parking Services","Car Parks Operational Staff","R4101"
"Wolverhampton City Council","http://opendatacommunities.org/id/metropolitan-district-council/wolverhampton","701509","Angel Springs Limited","3659745","15.64","Provisions (Not for resale)","130170909","26/05/2017","Facilities Management","Victoria Square, Block 11","R4101"
"Wolverhampton City Council","http://opendatacommunities.org/id/metropolitan-district-council/wolverhampton","701509","Angel Springs Limited","3610540","15.64","Provisions (Not for resale)","130169517","03/05/2017","Facilities Management","Culwell Street Depot","R4101"
"Wolverhampton City Council","http://opendatacommunities.org/id/metropolitan-district-council/wolverhampton","701509","Angel Springs Limited","3610504","234.52","Provisions (Not for resale)","130169732","05/05/2017","Democratic Services","Members Expenses","R4101"
"Wolverhampton City Council","http://opendatacommunities.org/id/metropolitan-district-council/wolverhampton","701509","Angel Springs Limited","3659773","123.75","Provisions (Not for resale)","130171739","26/05/2017","Maintenance Programme","Civic Centre Repairs & Maintenance","R4101"
"Wolverhampton City Council","http://opendatacommunities.org/id/metropolitan-district-council/wolverhampton","701509","Angel Springs Limited","3659775","59.48","Provisions (Not for resale)","130170665","26/05/2017","Highways Maintenance","Patching","R4101"
"Wolverhampton City Council","http://opendatacommunities.org/id/metropolitan-district-council/wolverhampton","701509","Angel Springs Limited","3610545","167.80","Provisions (Not for resale)","130169734","05/05/2017","Fleet Services","Fleet Management","R4101"
"Wolverhampton City Council","http://opendatacommunities.org/id/metropolitan-district-council/wolverhampton","701509","Angel Springs Limited","3495338","208.16","Provisions (Not for resale)","130159833","10/05/2017","Facilities Management","Culwell Street Depot","R4101"
"Wolverhampton City Council","http://opendatacommunities.org/id/metropolitan-district-council/wolverhampton","701509","Angel Springs Limited","3610507","16.20","Provisions (Not for resale)","130170657","10/05/2017","School Planning & Resources","Education Data Services","R4101"
"Wolverhampton City Council","http://opendatacommunities.org/id/metropolitan-district-council/wolverhampton","701509","Angel Springs Limited","3659748","13.75","Provisions (Not for resale)","130170664","31/05/2017","Skills","Connexions Contract","R4101"
"Wolverhampton City Council","http://opendatacommunities.org/id/metropolitan-district-council/wolverhampton","701509","Angel Springs Limited","3570529","20.00","Cleaning Supplies and Materials","130172549","24/05/2017","Library Services","Global Budgets","R2705"
"Wolverhampton City Council","http://opendatacommunities.org/id/metropolitan-district-council/wolverhampton","701509","Angel Springs Limited","3610505","9.72","Provisions (Not for resale)","130169733","24/05/2017","Fleet Services","Passenger Transport - General","R4101"
"Wolverhampton City Council","http://opendatacommunities.org/id/metropolitan-district-council/wolverhampton","701509","Angel Springs Limited","3659738","32.40","Provisions (Not for resale)","130170659","26/05/2017","Parking Services","Parking Enforcement","R4101"
"Wolverhampton City Council","http://opendatacommunities.org/id/metropolitan-district-council/wolverhampton","701509","Angel Springs Limited","3659740","15.64","Provisions (Not for resale)","130170661","26/05/2017","Early Intervention","EIP Locality 2 � Bilston/Rocket Pool","R4101"
"Wolverhampton City Council","http://opendatacommunities.org/id/metropolitan-district-council/wolverhampton","701509","Angel Springs Limited","3659743","19.44","Provisions (Not for resale)","130170663","26/05/2017","Customer Services","City Direct","R4101"
"Wolverhampton City Council","http://opendatacommunities.org/id/metropolitan-district-council/wolverhampton","701509","Angel Springs Limited","3654212","15.64","Provisions (Not for resale)","130171738","26/05/2017","Early Intervention","EIP Locality 2 � Bilston/Rocket Pool","R4101"
"Wolverhampton City Council","http://opendatacommunities.org/id/metropolitan-district-council/wolverhampton","701509","Angel Springs Limited","3659781","15.64","Provisions (Not for resale)","130171990","26/05/2017","Early Intervention","EIP Locality 8 � Children�s Village","R4101"
"Wolverhampton City Council","http://opendatacommunities.org/id/metropolitan-district-council/wolverhampton","701509","Angel Springs Limited","3659739","10.30","Provisions (Not for resale)","130170660","26/05/2017","Parking Services","Shopmobility","R4101"
"Wolverhampton City Council","http://opendatacommunities.org/id/metropolitan-district-council/wolverhampton","701511","Angelbell Limited T/A Hulleys Frozen","218701","161.48","Provisions (Resale)","130172551","31/05/2017","Visitor Economy","Bantock - Tea Rooms","R4102"
"Wolverhampton City Council","http://opendatacommunities.org/id/metropolitan-district-council/wolverhampton","701511","Angelbell Limited T/A Hulleys Frozen","203603","163.03","Provisions (Resale)","130168921","31/05/2017","Visitor Economy","Bantock - Tea Rooms","R4102"
"Wolverhampton City Council","http://opendatacommunities.org/id/metropolitan-district-council/wolverhampton","701511","Angelbell Limited T/A Hulleys Frozen","168576","194.54","Provisions (Resale)","130167183","03/05/2017","Visitor Economy","Bantock - Tea Rooms","R4102"
"Wolverhampton City Council","http://opendatacommunities.org/id/metropolitan-district-council/wolverhampton","701511","Angelbell Limited T/A Hulleys Frozen","161789","111.92","Provisions (Resale)","130167182","03/05/2017","Visitor Economy","Bantock - Tea Rooms","R4102"
"Wolverhampton City Council","http://opendatacommunities.org/id/metropolitan-district-council/wolverhampton","701511","Angelbell Limited T/A Hulleys Frozen","206226","224.51","Provisions (Resale)","130169518","19/05/2017","Visitor Economy","Bantock - Tea Rooms","R4102"
"Wolverhampton City Council","http://opendatacommunities.org/id/metropolitan-district-council/wolverhampton","701511","Angelbell Limited T/A Hulleys Frozen","185191","206.58","Provisions (Resale)","130167544","17/05/2017","Visitor Economy","Bantock - Tea Rooms","R4102"
"Wolverhampton City Council","http://opendatacommunities.org/id/metropolitan-district-council/wolverhampton","701511","Angelbell Limited T/A Hulleys Frozen","185185","206.58","Provisions (Resale)","130167185","17/05/2017","Visitor Economy","Bantock - Tea Rooms","R4102"
"Wolverhampton City Council","http://opendatacommunities.org/id/metropolitan-district-council/wolverhampton","701511","Angelbell Limited T/A Hulleys Frozen","191556","408.23","Provisions (Resale)","130168098","24/05/2017","Visitor Economy","Bantock - Tea Rooms","R4102"
"Wolverhampton City Council","http://opendatacommunities.org/id/metropolitan-district-council/wolverhampton","701512","Anglia Dna Services Limited","491","111.00","Services - Professional Fees","130170439","10/05/2017","Child Protection","Head of Service - CINCP","R4400"
"Wolverhampton City Council","http://opendatacommunities.org/id/metropolitan-district-council/wolverhampton","701545","Apcoa Parking (UK) Limited","256027","49,015.62","TPP - Traffic Management","130170440","26/05/2017","Parking Services","Parking Enforcement","R5050"
"Wolverhampton City Council","http://opendatacommunities.org/id/metropolitan-district-council/wolverhampton","701547","Apetito Limited","9001978588","996.75","Provisions (Resale)","130168247","17/05/2017","Catering","Meals on Wheels","R4102"
"Wolverhampton City Council","http://opendatacommunities.org/id/metropolitan-district-council/wolverhampton","701547","Apetito Limited","9001993247","1,087.09","Provisions (Resale)","130170442","31/05/2017","Catering","Meals on Wheels","R4102"
"Wolverhampton City Council","http://opendatacommunities.org/id/metropolitan-district-council/wolverhampton","701547","Apetito Limited","9001991040","923.33","Provisions (Resale)","130170057","31/05/2017","Catering","Meals on Wheels","R4102"
"Wolverhampton City Council","http://opendatacommunities.org/id/metropolitan-district-council/wolverhampton","701547","Apetito Limited","9001988609","1,224.88","Provisions (Resale)","130169735","24/05/2017","Catering","Meals on Wheels","R4102"
"Wolverhampton City Council","http://opendatacommunities.org/id/metropolitan-district-council/wolverhampton","701547","Apetito Limited","9001981947","1,114.32","Provisions (Resale)","130168682","26/05/2017","Catering","Meals on Wheels","R4102"
"Wolverhampton City Council","http://opendatacommunities.org/id/metropolitan-district-council/wolverhampton","701547","Apetito Limited","9001993246","57.54","Provisions (Resale)","130170441","31/05/2017","Catering","Meals on Wheels","R4102"
"Wolverhampton City Council","http://opendatacommunities.org/id/metropolitan-district-council/wolverhampton","701547","Apetito Limited","9001973233","884.14","Provisions (Resale)","130167545","10/05/2017","Catering","Meals on Wheels","R4102"
"Wolverhampton City Council","http://opendatacommunities.org/id/metropolitan-district-council/wolverhampton","701547","Apetito Limited","9001976087","1,018.83","Provisions (Resale)","130168246","10/05/2017","Catering","Meals on Wheels","R4102"
"Wolverhampton City Council","http://opendatacommunities.org/id/metropolitan-district-council/wolverhampton","701547","Apetito Limited","9001984283","956.57","Provisions (Resale)","130169097","24/05/2017","Catering","Meals on Wheels","R4102"
"Wolverhampton City Council","http://opendatacommunities.org/id/metropolitan-district-council/wolverhampton","701556","Apollo Distribution Solutions","54488","67.20","Services - Professional Fees","130173565","31/05/2017","Democratic Services","Coroners Service","R4400"
"Wolverhampton City Council","http://opendatacommunities.org/id/metropolitan-district-council/wolverhampton","701556","Apollo Distribution Solutions","54597","166.85","Services - Professional Fees","130173566","31/05/2017","Democratic Services","Coroners Service","R4400"
"Wolverhampton City Council","http://opendatacommunities.org/id/metropolitan-district-council/wolverhampton","701556","Apollo Distribution Solutions","54566","66.15","Services - Professional Fees","130169736","10/05/2017","Democratic Services","Coroners Service","R4400"
"Wolverhampton City Council","http://opendatacommunities.org/id/metropolitan-district-council/wolverhampton","701594","Argos Business Solutions Limited","01527175","161.66","Equipment - Purchase","130166906","05/05/2017","Early Intervention","EIP Locality 6 � Dovecotes","R4000"
"Wolverhampton City Council","http://opendatacommunities.org/id/metropolitan-district-council/wolverhampton","701594","Argos Business Solutions Limited","01527176","601.53","Equipment - Purchase","130166907","05/05/2017","Early Intervention","EIP Locality 6 � Dovecotes","R4000"
"Wolverhampton City Council","http://opendatacommunities.org/id/metropolitan-district-council/wolverhampton","701594","Argos Business Solutions Limited","01529212","108.50","Fixtures and Fittings - Purchases","130168070","12/05/2017","Early Intervention","EIP Locality 5 � Whitmore Reans","R2500"
"Wolverhampton City Council","http://opendatacommunities.org/id/metropolitan-district-council/wolverhampton","701594","Argos Business Solutions Limited","01527174","50.11","Equipment - Purchase","130166905","05/05/2017","Early Intervention","EIP Locality 6 � Dovecotes","R4000"
"Wolverhampton City Council","http://opendatacommunities.org/id/metropolitan-district-council/wolverhampton","701594","Argos Business Solutions Limited","01531099","122.18","Equipment - Purchase","130168519","19/05/2017","Early Intervention","EIP Locality 6 � Dovecotes","R4000"
"Wolverhampton City Council","http://opendatacommunities.org/id/metropolitan-district-council/wolverhampton","701594","Argos Business Solutions Limited","01531100","476.87","Equipment - Purchase","130168520","19/05/2017","Early Intervention","EIP Locality 5 � Whitmore Reans","R4000"
"Wolverhampton City Council","http://opendatacommunities.org/id/metropolitan-district-council/wolverhampton","701594","Argos Business Solutions Limited","01531101","186.00","Equipment - Purchase","130168521","19/05/2017","Early Intervention","EIP Locality 6 � Dovecotes","R4000"
"Wolverhampton City Council","http://opendatacommunities.org/id/metropolitan-district-council/wolverhampton","701594","Argos Business Solutions Limited","01529213","135.11","Fixtures and Fittings - Purchases","130168071","12/05/2017","Early Intervention","EIP Locality 5 � Whitmore Reans","R2500"
"Wolverhampton City Council","http://opendatacommunities.org/id/metropolitan-district-council/wolverhampton","701594","Argos Business Solutions Limited","01529210","19.45","Equipment - Purchase","130168068","12/05/2017","Early Intervention","EIP Locality 6 � Dovecotes","R4000"
"Wolverhampton City Council","http://opendatacommunities.org/id/metropolitan-district-council/wolverhampton","701594","Argos Business Solutions Limited","01529208","109.28","Equipment - Purchase","130168066","12/05/2017","Early Intervention","EIP Locality 6 � Dovecotes","R4000"
"Wolverhampton City Council","http://opendatacommunities.org/id/metropolitan-district-council/wolverhampton","701594","Argos Business Solutions Limited","01529209","313.72","Equipment - Purchase","130168067","12/05/2017","Early Intervention","EIP Locality 6 � Dovecotes","R4000"
"Wolverhampton City Council","http://opendatacommunities.org/id/metropolitan-district-council/wolverhampton","701594","Argos Business Solutions Limited","01529214","21.98","Equipment - Purchase","130168072","12/05/2017","Early Intervention","EIP Locality 6 � Dovecotes","R4000"
"Wolverhampton City Council","http://opendatacommunities.org/id/metropolitan-district-council/wolverhampton","701594","Argos Business Solutions Limited","01529214","-4.22","Equipment - Purchase","130168072","12/05/2017","Early Intervention","EIP Locality 6 � Dovecotes","R4000"
"Wolverhampton City Council","http://opendatacommunities.org/id/metropolitan-district-council/wolverhampton","701594","Argos Business Solutions Limited","01529211","484.99","Equipment - Purchase","130168069","12/05/2017","Early Intervention","EIP Locality 6 � Dovecotes","R4000"
"Wolverhampton City Council","http://opendatacommunities.org/id/metropolitan-district-council/wolverhampton","701594","Argos Business Solutions Limited","01533252","59.86","Equipment - Purchase","130169520","31/05/2017","Learning Disability Provider","Learning Disabilities Management","R4000"
"Wolverhampton City Council","http://opendatacommunities.org/id/metropolitan-district-council/wolverhampton","701594","Argos Business Solutions Limited","01527612","-12.18","Equipment - Purchase","130167188","10/05/2017","Early Intervention","EIP Locality 6 � Dovecotes","R4000"
"Wolverhampton City Council","http://opendatacommunities.org/id/metropolitan-district-council/wolverhampton","701594","Argos Business Solutions Limited","01533251","74.42","Furniture","130169519","26/05/2017","Early Intervention","EIP Locality 5 � Whitmore Reans","R4004"
"Wolverhampton City Council","http://opendatacommunities.org/id/metropolitan-district-council/wolverhampton","701603","Arnold Clark Finance Limited","HI2176523","18.12","Hire of Vehicles","190339857","26/05/2017","Fleet Services","Fleet Management","R3200"
"Wolverhampton City Council","http://opendatacommunities.org/id/metropolitan-district-council/wolverhampton","701603","Arnold Clark Finance Limited","HI2177832","41.88","Hire of Vehicles","190339858","26/05/2017","Fleet Services","Fleet Management","R3200"
"Wolverhampton City Council","http://opendatacommunities.org/id/metropolitan-district-council/wolverhampton","701603","Arnold Clark Finance Limited","HI1989149","18.00","Hire of Vehicles","190336644","17/05/2017","Fleet Services","Fleet Management","R3200"
"Wolverhampton City Council","http://opendatacommunities.org/id/metropolitan-district-council/wolverhampton","701603","Arnold Clark Finance Limited","HI1989149","21.11","Hire of Vehicles","190336644","17/05/2017","Fleet Services","Fleet Management","R3200"
"Wolverhampton City Council","http://opendatacommunities.org/id/metropolitan-district-council/wolverhampton","701603","Arnold Clark Finance Limited","HI2166849","15.15","Hire of Vehicles","190336645","17/05/2017","Fleet Services","Fleet Management","R3200"
"Wolverhampton City Council","http://opendatacommunities.org/id/metropolitan-district-council/wolverhampton","701603","Arnold Clark Finance Limited","HI2166865","15.15","Hire of Vehicles","190336647","17/05/2017","Fleet Services","Fleet Management","R3200"
"Wolverhampton City Council","http://opendatacommunities.org/id/metropolitan-district-council/wolverhampton","701603","Arnold Clark Finance Limited","HI2175049","36.24","Hire of Vehicles","190336654","17/05/2017","Fleet Services","Fleet Management","R3200"
"Wolverhampton City Council","http://opendatacommunities.org/id/metropolitan-district-council/wolverhampton","701603","Arnold Clark Finance Limited","HI2175050","36.24","Hire of Vehicles","190336655","17/05/2017","Fleet Services","Fleet Management","R3200"
"Wolverhampton City Council","http://opendatacommunities.org/id/metropolitan-district-council/wolverhampton","701603","Arnold Clark Finance Limited","HI2166875","26.55","Hire of Vehicles","190336649","17/05/2017","Fleet Services","Fleet Management","R3200"
"Wolverhampton City Council","http://opendatacommunities.org/id/metropolitan-district-council/wolverhampton","701603","Arnold Clark Finance Limited","HI1988319","18.00","Hire of Vehicles","190336643","17/05/2017","Fleet Services","Fleet Management","R3200"
"Wolverhampton City Council","http://opendatacommunities.org/id/metropolitan-district-council/wolverhampton","701603","Arnold Clark Finance Limited","HI1988319","28.59","Hire of Vehicles","190336643","17/05/2017","Fleet Services","Fleet Management","R3200"
"Wolverhampton City Council","http://opendatacommunities.org/id/metropolitan-district-council/wolverhampton","701603","Arnold Clark Finance Limited","HI2167672","18.12","Hire of Vehicles","190336650","17/05/2017","Fleet Services","Fleet Management","R3200"
"Wolverhampton City Council","http://opendatacommunities.org/id/metropolitan-district-council/wolverhampton","701603","Arnold Clark Finance Limited","HI2166869","18.12","Hire of Vehicles","190336648","17/05/2017","Fleet Services","Fleet Management","R3200"
"Wolverhampton City Council","http://opendatacommunities.org/id/metropolitan-district-council/wolverhampton","701603","Arnold Clark Finance Limited","HI2167769","18.12","Hire of Vehicles","190336651","17/05/2017","Fleet Services","Fleet Management","R3200"
"Wolverhampton City Council","http://opendatacommunities.org/id/metropolitan-district-council/wolverhampton","701603","Arnold Clark Finance Limited","HI21705073","18.12","Hire of Vehicles","190336652","17/05/2017","Fleet Services","Fleet Management","R3200"
"Wolverhampton City Council","http://opendatacommunities.org/id/metropolitan-district-council/wolverhampton","701603","Arnold Clark Finance Limited","HI2175048","18.12","Hire of Vehicles","190336653","17/05/2017","Fleet Services","Fleet Management","R3200"
"Wolverhampton City Council","http://opendatacommunities.org/id/metropolitan-district-council/wolverhampton","701603","Arnold Clark Finance Limited","HI2166857","18.12","Hire of Vehicles","190336646","17/05/2017","Fleet Services","Fleet Management","R3200"
"Wolverhampton City Council","http://opendatacommunities.org/id/metropolitan-district-council/wolverhampton","701613","Arthur Brett (Catering) Limited","ID936760","12.32","Provisions (Resale)","130169340","05/05/2017","Learning Disability Provider","Duke Street Bungalows","R4102"
"Wolverhampton City Council","http://opendatacommunities.org/id/metropolitan-district-council/wolverhampton","701613","Arthur Brett (Catering) Limited","ID940884","164.11","Provisions (Resale)","130170061","24/05/2017","Visitor Economy","Bantock - Tea Rooms","R4102"
"Wolverhampton City Council","http://opendatacommunities.org/id/metropolitan-district-council/wolverhampton","701613","Arthur Brett (Catering) Limited","ID940344","51.02","Provisions (Resale)","130169741","24/05/2017","Visitor Economy","Art Gallery Tea Room","R4102"
"Wolverhampton City Council","http://opendatacommunities.org/id/metropolitan-district-council/wolverhampton","701613","Arthur Brett (Catering) Limited","CN31765","-46.00","Provisions (Resale)","130171992","24/05/2017","Visitor Economy","Art Gallery Tea Room","R4102"
"Wolverhampton City Council","http://opendatacommunities.org/id/metropolitan-district-council/wolverhampton","701613","Arthur Brett (Catering) Limited","CN31690","-10.70","Provisions (Resale)","130170443","10/05/2017","Older People Provider Services","Blakenhall Resource Centre","R4102"
"Wolverhampton City Council","http://opendatacommunities.org/id/metropolitan-district-council/wolverhampton","701613","Arthur Brett (Catering) Limited","ID941577","18.15","Provisions (Resale)","130171084","24/05/2017","Learning Disability Provider","Duke Street Bungalows","R4102"
"Wolverhampton City Council","http://opendatacommunities.org/id/metropolitan-district-council/wolverhampton","701613","Arthur Brett (Catering) Limited","ID941574","24.09","Provisions (Resale)","130171083","24/05/2017","Learning Disability Provider","Duke Street Bungalows","R4102"
"Wolverhampton City Council","http://opendatacommunities.org/id/metropolitan-district-council/wolverhampton","701613","Arthur Brett (Catering) Limited","ID940435","8.48","Provisions (Resale)","130170445","24/05/2017","Learning Disability Provider","Duke Street Bungalows","R4102"
"Wolverhampton City Council","http://opendatacommunities.org/id/metropolitan-district-council/wolverhampton","701613","Arthur Brett (Catering) Limited","3004172","897.89","Provisions (Resale)","130172757","26/05/2017","Catering","Civic Centre Catering","R4102"
"Wolverhampton City Council","http://opendatacommunities.org/id/metropolitan-district-council/wolverhampton","701613","Arthur Brett (Catering) Limited","3004173","17,797.51","Provisions (Resale)","130172758","26/05/2017","Catering","Education Catering - General Overheads","R4102"
"Wolverhampton City Council","http://opendatacommunities.org/id/metropolitan-district-council/wolverhampton","701613","Arthur Brett (Catering) Limited","ID941557","12.36","Provisions (Resale)","130171082","26/05/2017","Learning Disability Provider","Duke Street Bungalows","R4102"
"Wolverhampton City Council","http://opendatacommunities.org/id/metropolitan-district-council/wolverhampton","701613","Arthur Brett (Catering) Limited","3004171","125.33","Provisions (Resale)","130172756","26/05/2017","Catering","Meals on Wheels","R4102"
"Wolverhampton City Council","http://opendatacommunities.org/id/metropolitan-district-council/wolverhampton","701613","Arthur Brett (Catering) Limited","ID943698","151.04","Provisions (Resale)","130171359","31/05/2017","Visitor Economy","Bantock - Tea Rooms","R4102"
"Wolverhampton City Council","http://opendatacommunities.org/id/metropolitan-district-council/wolverhampton","701613","Arthur Brett (Catering) Limited","ID941566","102.10","Provisions (Resale)","130170219","24/05/2017","Visitor Economy","Bantock - Tea Rooms","R4102"
"Wolverhampton City Council","http://opendatacommunities.org/id/metropolitan-district-council/wolverhampton","701613","Arthur Brett (Catering) Limited","ID940910","160.49","Provisions (Resale)","130170062","24/05/2017","Visitor Economy","Art Gallery Tea Room","R4102"
"Wolverhampton City Council","http://opendatacommunities.org/id/metropolitan-district-council/wolverhampton","701613","Arthur Brett (Catering) Limited","ID939730","95.84","Provisions (Resale)","130169524","17/05/2017","Visitor Economy","Art Gallery Tea Room","R4102"
"Wolverhampton City Council","http://opendatacommunities.org/id/metropolitan-district-council/wolverhampton","701613","Arthur Brett (Catering) Limited","ID939863","139.65","Provisions (Resale)","130169525","17/05/2017","Visitor Economy","Bantock - Tea Rooms","R4102"
"Wolverhampton City Council","http://opendatacommunities.org/id/metropolitan-district-council/wolverhampton","701613","Arthur Brett (Catering) Limited","ID938681","25.07","Provisions (Resale)","130169521","24/05/2017","Older People Provider Services","Blakenhall Resource Centre","R4102"
"Wolverhampton City Council","http://opendatacommunities.org/id/metropolitan-district-council/wolverhampton","701613","Arthur Brett (Catering) Limited","ID942364","117.76","Provisions (Resale)","130170667","24/05/2017","Visitor Economy","Art Gallery Tea Room","R4102"
"Wolverhampton City Council","http://opendatacommunities.org/id/metropolitan-district-council/wolverhampton","701613","Arthur Brett (Catering) Limited","3103171","45,922.67","Provisions (Resale)","130169737","10/05/2017","Catering","Education Catering - General Overheads","R4102"
"Wolverhampton City Council","http://opendatacommunities.org/id/metropolitan-district-council/wolverhampton","701613","Arthur Brett (Catering) Limited","ID937873","23.44","Provisions (Resale)","130168424","03/05/2017","Leisure Services","WV Active Catering","R4102"
"Wolverhampton City Council","http://opendatacommunities.org/id/metropolitan-district-council/wolverhampton","701613","Arthur Brett (Catering) Limited","ID938926","54.64","Provisions (Resale)","130169099","03/05/2017","Visitor Economy","Bantock - Tea Rooms","R4102"
"Wolverhampton City Council","http://opendatacommunities.org/id/metropolitan-district-council/wolverhampton","701613","Arthur Brett (Catering) Limited","ID936765","16.44","Provisions (Resale)","130169341","03/05/2017","Learning Disability Provider","Duke Street Bungalows","R4102"
"Wolverhampton City Council","http://opendatacommunities.org/id/metropolitan-district-council/wolverhampton","701613","Arthur Brett (Catering) Limited","ID936768","19.75","Provisions (Resale)","130169342","03/05/2017","Learning Disability Provider","Duke Street Bungalows","R4102"
"Wolverhampton City Council","http://opendatacommunities.org/id/metropolitan-district-council/wolverhampton","701613","Arthur Brett (Catering) Limited","ID935331","16.21","Provisions (Resale)","130166027","03/05/2017","Leisure Services","WV Active Catering","R4102"
"Wolverhampton City Council","http://opendatacommunities.org/id/metropolitan-district-council/wolverhampton","701613","Arthur Brett (Catering) Limited","ID938405","14.48","Provisions (Resale)","130168685","03/05/2017","Older People Provider Services","Blakenhall Resource Centre","R4102"
"Wolverhampton City Council","http://opendatacommunities.org/id/metropolitan-district-council/wolverhampton","701613","Arthur Brett (Catering) Limited","ID939318","138.29","Provisions (Resale)","130169343","17/05/2017","Visitor Economy","Bantock - Tea Rooms","R4102"
"Wolverhampton City Council","http://opendatacommunities.org/id/metropolitan-district-council/wolverhampton","701613","Arthur Brett (Catering) Limited","ID942672","173.71","Provisions (Resale)","130171085","31/05/2017","Visitor Economy","Bantock - Tea Rooms","R4102"
"Wolverhampton City Council","http://opendatacommunities.org/id/metropolitan-district-council/wolverhampton","701613","Arthur Brett (Catering) Limited","ID943956","196.66","Provisions (Resale)","130171564","31/05/2017","Visitor Economy","Art Gallery Tea Room","R4102"
"Wolverhampton City Council","http://opendatacommunities.org/id/metropolitan-district-council/wolverhampton","701613","Arthur Brett (Catering) Limited","ID944532","86.83","Provisions (Resale)","130171995","31/05/2017","Visitor Economy","Art Gallery Tea Room","R4102"
"Wolverhampton City Council","http://opendatacommunities.org/id/metropolitan-district-council/wolverhampton","701613","Arthur Brett (Catering) Limited","ID940895","20.94","Provisions (Resale)","130170218","31/05/2017","Older People Provider Services","Blakenhall Resource Centre","R4102"
"Wolverhampton City Council","http://opendatacommunities.org/id/metropolitan-district-council/wolverhampton","701613","Arthur Brett (Catering) Limited","ID943105","32.20","Provisions (Resale)","130171358","31/05/2017","Older People Provider Services","Blakenhall Resource Centre","R4102"
"Wolverhampton City Council","http://opendatacommunities.org/id/metropolitan-district-council/wolverhampton","701613","Arthur Brett (Catering) Limited","ID944832","8.69","Provisions (Resale)","130172553","31/05/2017","Learning Disability Provider","Duke Street Bungalows","R4102"
"Wolverhampton City Council","http://opendatacommunities.org/id/metropolitan-district-council/wolverhampton","701613","Arthur Brett (Catering) Limited","ID942965","112.02","Provisions (Resale)","130171086","31/05/2017","Visitor Economy","Art Gallery Tea Room","R4102"
"Wolverhampton City Council","http://opendatacommunities.org/id/metropolitan-district-council/wolverhampton","701613","Arthur Brett (Catering) Limited","ID939544","15.71","Provisions (Resale)","130170059","19/05/2017","Learning Disability Provider","Duke Street Bungalows","R4102"
"Wolverhampton City Council","http://opendatacommunities.org/id/metropolitan-district-council/wolverhampton","701613","Arthur Brett (Catering) Limited","ID939547","28.57","Provisions (Resale)","130170060","19/05/2017","Learning Disability Provider","Duke Street Bungalows","R4102"
"Wolverhampton City Council","http://opendatacommunities.org/id/metropolitan-district-council/wolverhampton","701613","Arthur Brett (Catering) Limited","ID939494","9.26","Provisions (Resale)","130170058","19/05/2017","Learning Disability Provider","Duke Street Bungalows","R4102"
"Wolverhampton City Council","http://opendatacommunities.org/id/metropolitan-district-council/wolverhampton","701613","Arthur Brett (Catering) Limited","ID937308","40.59","Provisions (Resale)","130168684","19/05/2017","Older People Provider Services","Bradley Lodge Resource Centre","R4102"
"Wolverhampton City Council","http://opendatacommunities.org/id/metropolitan-district-council/wolverhampton","701613","Arthur Brett (Catering) Limited","ID939248","14.81","Provisions (Resale)","130169522","19/05/2017","Learning Disability Provider","Duke Street Bungalows","R4102"
"Wolverhampton City Council","http://opendatacommunities.org/id/metropolitan-district-council/wolverhampton","701613","Arthur Brett (Catering) Limited","3103172","1,210.61","Provisions (Resale)","130169738","10/05/2017","Catering","Civic Centre Catering","R4102"
"Wolverhampton City Council","http://opendatacommunities.org/id/metropolitan-district-council/wolverhampton","701613","Arthur Brett (Catering) Limited","3103174","165.70","Provisions (Resale)","130169740","10/05/2017","Catering","Meals on Wheels","R4102"
"Wolverhampton City Council","http://opendatacommunities.org/id/metropolitan-district-council/wolverhampton","701626","Asan Management Services Limited","112057","335.50","Room Hire","130172169","26/05/2017","Looked After Children","RAA - Regional Adoption Agency","R2201"
"Wolverhampton City Council","http://opendatacommunities.org/id/metropolitan-district-council/wolverhampton","701629","ASCL","79237 / 5375","350.00","Services - Professional Fees","130170447","31/05/2017","Schools","Moreton Community School","R4400"
"Wolverhampton City Council","http://opendatacommunities.org/id/metropolitan-district-council/wolverhampton","701636","Asdan Limited","253774","355.00","Training Expenses","130172556","24/05/2017","Youth Offending","Youth Offending Team","R1650"
"Wolverhampton City Council","http://opendatacommunities.org/id/metropolitan-district-council/wolverhampton","701643","Ashdown Supplies","14579","338.40","Materials","130171087","17/05/2017","Bereavement Services","Cemeteries","R4007"
"Wolverhampton City Council","http://opendatacommunities.org/id/metropolitan-district-council/wolverhampton","701656","Askews & Holts Library Services Limited","5372147","363.97","Books","130168924","17/05/2017","Library Services","Global Budgets","R4309"
"Wolverhampton City Council","http://opendatacommunities.org/id/metropolitan-district-council/wolverhampton","701656","Askews & Holts Library Services Limited","5376145","6.51","Books","130169344","19/05/2017","Library Services","Global Budgets","R4309"
"Wolverhampton City Council","http://opendatacommunities.org/id/metropolitan-district-council/wolverhampton","701656","Askews & Holts Library Services Limited","5366574","612.21","Books","130168427","10/05/2017","Library Services","Global Budgets","R4309"
"Wolverhampton City Council","http://opendatacommunities.org/id/metropolitan-district-council/wolverhampton","701656","Askews & Holts Library Services Limited","5376146","472.22","Books","130169345","19/05/2017","Library Services","Global Budgets","R4309"
"Wolverhampton City Council","http://opendatacommunities.org/id/metropolitan-district-council/wolverhampton","701656","Askews & Holts Library Services Limited","5376147","299.26","Books","130169346","19/05/2017","Library Services","Global Budgets","R4309"
"Wolverhampton City Council","http://opendatacommunities.org/id/metropolitan-district-council/wolverhampton","701656","Askews & Holts Library Services Limited","5364441","461.22","Books","130168425","05/05/2017","Library Services","Global Budgets","R4309"
"Wolverhampton City Council","http://opendatacommunities.org/id/metropolitan-district-council/wolverhampton","701656","Askews & Holts Library Services Limited","5364442","356.30","Books","130168426","05/05/2017","Library Services","Global Budgets","R4309"
"Wolverhampton City Council","http://opendatacommunities.org/id/metropolitan-district-council/wolverhampton","701656","Askews & Holts Library Services Limited","5366575","163.73","Books","130168428","10/05/2017","Library Services","Global Budgets","R4309"
"Wolverhampton City Council","http://opendatacommunities.org/id/metropolitan-district-council/wolverhampton","701656","Askews & Holts Library Services Limited","5370803","85.40","Books","130168429","10/05/2017","Library Services","Global Budgets","R4309"
"Wolverhampton City Council","http://opendatacommunities.org/id/metropolitan-district-council/wolverhampton","701656","Askews & Holts Library Services Limited","5370804","86.89","Books","130168430","10/05/2017","Library Services","Global Budgets","R4309"
"Wolverhampton City Council","http://opendatacommunities.org/id/metropolitan-district-council/wolverhampton","701656","Askews & Holts Library Services Limited","5381360","859.04","Books","130170670","24/05/2017","Library Services","Global Budgets","R4309"
"Wolverhampton City Council","http://opendatacommunities.org/id/metropolitan-district-council/wolverhampton","701656","Askews & Holts Library Services Limited","5383778","506.85","Books","130170671","26/05/2017","Library Services","Global Budgets","R4309"
"Wolverhampton City Council","http://opendatacommunities.org/id/metropolitan-district-council/wolverhampton","701680","Associated  Radio Taxi�s","030889","681.84","Client Transport","130172298","24/05/2017","School Planning & Resources","Primary - Transport","R3042"
"Wolverhampton City Council","http://opendatacommunities.org/id/metropolitan-district-council/wolverhampton","701680","Associated  Radio Taxi�s","03088 debit","567.72","Client Transport","130172277","24/05/2017","School Planning & Resources","Secondary- Transport","R3042"
"Wolverhampton City Council","http://opendatacommunities.org/id/metropolitan-district-council/wolverhampton","701680","Associated  Radio Taxi�s","03088 debit","567.72","Client Transport","130172277","24/05/2017","School Planning & Resources","Secondary- Transport","R3042"
"Wolverhampton City Council","http://opendatacommunities.org/id/metropolitan-district-council/wolverhampton","701680","Associated  Radio Taxi�s","03088 debit","-567.72","Client Transport","130172277","24/05/2017","School Planning & Resources","Secondary- Transport","R3042"
"Wolverhampton City Council","http://opendatacommunities.org/id/metropolitan-district-council/wolverhampton","701680","Associated  Radio Taxi�s","03088 corr","567.72","Client Transport","130172276","19/05/2017","School Planning & Resources","Secondary- Transport","R3042"
"Wolverhampton City Council","http://opendatacommunities.org/id/metropolitan-district-council/wolverhampton","701680","Associated  Radio Taxi�s","030894","526.00","Client Transport","130171744","17/05/2017","School Planning & Resources","Special - Transport","R3042"
"Wolverhampton City Council","http://opendatacommunities.org/id/metropolitan-district-council/wolverhampton","701680","Associated  Radio Taxi�s","03088","-567.72","Client Transport","130171565","17/05/2017","School Planning & Resources","Secondary- Transport","R3042"
"Wolverhampton City Council","http://opendatacommunities.org/id/metropolitan-district-council/wolverhampton","701680","Associated  Radio Taxi�s","030892","475.00","Client Transport","130171566","17/05/2017","School Planning & Resources","Secondary- Transport","R3042"
"Wolverhampton City Council","http://opendatacommunities.org/id/metropolitan-district-council/wolverhampton","701680","Associated  Radio Taxi�s","030891","552.60","Client Transport","130172300","24/05/2017","School Planning & Resources","Secondary- Transport","R3042"
"Wolverhampton City Council","http://opendatacommunities.org/id/metropolitan-district-council/wolverhampton","701680","Associated  Radio Taxi�s","030890","536.20","Client Transport","130172299","24/05/2017","School Planning & Resources","Primary - Transport","R3042"
"Wolverhampton City Council","http://opendatacommunities.org/id/metropolitan-district-council/wolverhampton","701680","Associated  Radio Taxi�s","030895","325.93","Client Transport","130172301","24/05/2017","School Planning & Resources","Special - Transport","R3042"
"Wolverhampton City Council","http://opendatacommunities.org/id/metropolitan-district-council/wolverhampton","701680","Associated  Radio Taxi�s","030893","358.50","Client Transport","130171091","12/05/2017","School Planning & Resources","Secondary- Transport","R3042"
"Wolverhampton City Council","http://opendatacommunities.org/id/metropolitan-district-council/wolverhampton","701712","Pelican Rouge Coffee Solutions Limited","170013088","383.95","Provisions (Resale)","130170673","24/05/2017","Catering","Civic Centre Catering","R4102"
"Wolverhampton City Council","http://opendatacommunities.org/id/metropolitan-district-council/wolverhampton","701712","Pelican Rouge Coffee Solutions Limited","170013088","-383.95","Provisions (Resale)","130170673","24/05/2017","Catering","Civic Centre Catering","R4102"
"Wolverhampton City Council","http://opendatacommunities.org/id/metropolitan-district-council/wolverhampton","701712","Pelican Rouge Coffee Solutions Limited","170013088","383.95","Provisions (Resale)","130170673","24/05/2017","Catering","Civic Centre Catering","R4102"
"Wolverhampton City Council","http://opendatacommunities.org/id/metropolitan-district-council/wolverhampton","701738","Axiell ALM Limited","805097","4,588.11","Computing - Maint Agreements","130170448","10/05/2017","Visitor Economy","Art Gallery","R4534"
"Wolverhampton City Council","http://opendatacommunities.org/id/metropolitan-district-council/wolverhampton","701739","Axiom Building Solutions","03908","175.00","R&M - Departmental planned (external)","130168253","10/05/2017","Corporate Asset Management","Statutory Surveys","R2001"
"Wolverhampton City Council","http://opendatacommunities.org/id/metropolitan-district-council/wolverhampton","701739","Axiom Building Solutions","03986","2,350.00","R&M - Departmental planned (external)","130169744","24/05/2017","Corporate Asset Management","Statutory Surveys","R2001"
"Wolverhampton City Council","http://opendatacommunities.org/id/metropolitan-district-council/wolverhampton","701739","Axiom Building Solutions","03880","1,950.00","R&M - Departmental planned (external)","130167548","05/05/2017","Corporate Asset Management","Statutory Surveys","R2001"
"Wolverhampton City Council","http://opendatacommunities.org/id/metropolitan-district-council/wolverhampton","701739","Axiom Building Solutions","03881","265.00","R&M - Departmental planned (external)","130167549","05/05/2017","Corporate Asset Management","Statutory Surveys","R2001"
"Wolverhampton City Council","http://opendatacommunities.org/id/metropolitan-district-council/wolverhampton","701739","Axiom Building Solutions","03956","11,850.00","Construction and Conversion","130169347","24/05/2017","","Capital Maintenance - Heating Pipework Upgrades","C1100"
"Wolverhampton City Council","http://opendatacommunities.org/id/metropolitan-district-council/wolverhampton","701739","Axiom Building Solutions","03972","1,650.00","R&M - Departmental planned (external)","130169526","24/05/2017","Corporate Asset Management","Statutory Surveys","R2001"
"Wolverhampton City Council","http://opendatacommunities.org/id/metropolitan-district-council/wolverhampton","701748","B + G Cleaning Systems Limited","161160","153.35","Services - Professional Fees","190341849","31/05/2017","Fleet Services","Fleet Management","R4400"
"Wolverhampton City Council","http://opendatacommunities.org/id/metropolitan-district-council/wolverhampton","701774","Badenoch & Clark Recruit. Specialist","CR7423/00","604.90","Agency Staff","130172761","31/05/2017","Strategic Director People","Head of Strategic Commissioning � People","R1100"
"Wolverhampton City Council","http://opendatacommunities.org/id/metropolitan-district-council/wolverhampton","701774","Badenoch & Clark Recruit. Specialist","CP9726/00","2,860.00","Agency Staff","130170914","17/05/2017","City Development","City Development  - Core Team","R1100"
"Wolverhampton City Council","http://opendatacommunities.org/id/metropolitan-district-council/wolverhampton","701774","Badenoch & Clark Recruit. Specialist","CJ0360/00","2,260.00","Agency Staff","130173123","26/05/2017","Strategic Director People","Head of Strategic Commissioning � People","R1100"
"Wolverhampton City Council","http://opendatacommunities.org/id/metropolitan-district-council/wolverhampton","701774","Badenoch & Clark Recruit. Specialist","CJ0357/00","2,260.00","Agency Staff","130173122","26/05/2017","Strategic Director People","Head of Strategic Commissioning � People","R1100"
"Wolverhampton City Council","http://opendatacommunities.org/id/metropolitan-district-council/wolverhampton","701774","Badenoch & Clark Recruit. Specialist","CR4606/00","789.00","Agency Staff","130172303","26/05/2017","Strategic Director People","Head of Strategic Commissioning � People","R1100"
"Wolverhampton City Council","http://opendatacommunities.org/id/metropolitan-district-council/wolverhampton","701774","Badenoch & Clark Recruit. Specialist","CR4609/00","946.80","Agency Staff","130172306","26/05/2017","Strategic Director People","Head of Strategic Commissioning � People","R1100"
"Wolverhampton City Council","http://opendatacommunities.org/id/metropolitan-district-council/wolverhampton","701774","Badenoch & Clark Recruit. Specialist","CE0568/00","867.90","Agency Staff","130169747","10/05/2017","Strategic Director People","Head of Strategic Commissioning � People","R1100"
"Wolverhampton City Council","http://opendatacommunities.org/id/metropolitan-district-council/wolverhampton","701774","Badenoch & Clark Recruit. Specialist","CE6530/00","2,175.00","Agency Staff","130169748","10/05/2017","Strategic Director People","Head of Strategic Commissioning � People","R1100"
"Wolverhampton City Council","http://opendatacommunities.org/id/metropolitan-district-council/wolverhampton","701774","Badenoch & Clark Recruit. Specialist","CP9728/00","2,860.00","Agency Staff","130170916","24/05/2017","City Development","City Development  - Core Team","R1100"
"Wolverhampton City Council","http://opendatacommunities.org/id/metropolitan-district-council/wolverhampton","701774","Badenoch & Clark Recruit. Specialist","CR5292/00","2,100.00","Agency Staff","130172558","26/05/2017","Strategic Finance","Strategic Finance","R1100"
"Wolverhampton City Council","http://opendatacommunities.org/id/metropolitan-district-council/wolverhampton","701774","Badenoch & Clark Recruit. Specialist","CP9727/00","2,860.00","Agency Staff","130170915","24/05/2017","City Development","City Development  - Core Team","R1100"
"Wolverhampton City Council","http://opendatacommunities.org/id/metropolitan-district-council/wolverhampton","701774","Badenoch & Clark Recruit. Specialist","CQ5191/00","2,860.00","Agency Staff","130171567","19/05/2017","City Development","City Development  - Core Team","R1100"
"Wolverhampton City Council","http://opendatacommunities.org/id/metropolitan-district-council/wolverhampton","701774","Badenoch & Clark Recruit. Specialist","CS5364/00","2,100.00","Agency Staff","130173255","31/05/2017","Strategic Finance","Strategic Finance","R1100"
"Wolverhampton City Council","http://opendatacommunities.org/id/metropolitan-district-council/wolverhampton","701774","Badenoch & Clark Recruit. Specialist","CQ3333/00","394.50","Agency Staff","130171096","17/05/2017","Strategic Director People","Head of Strategic Commissioning � People","R1100"
"Wolverhampton City Council","http://opendatacommunities.org/id/metropolitan-district-council/wolverhampton","701774","Badenoch & Clark Recruit. Specialist","CQ3332/00","999.40","Agency Staff","130171095","17/05/2017","Strategic Director People","Head of Strategic Commissioning � People","R1100"
"Wolverhampton City Council","http://opendatacommunities.org/id/metropolitan-district-council/wolverhampton","701774","Badenoch & Clark Recruit. Specialist","CJ3676/00","2,175.00","Agency Staff","130169759","10/05/2017","Strategic Director People","Head of Strategic Commissioning � People","R1100"
"Wolverhampton City Council","http://opendatacommunities.org/id/metropolitan-district-council/wolverhampton","701774","Badenoch & Clark Recruit. Specialist","CJ0356/00","2,260.00","Agency Staff","130169755","10/05/2017","Strategic Director People","Head of Strategic Commissioning � People","R1100"
"Wolverhampton City Council","http://opendatacommunities.org/id/metropolitan-district-council/wolverhampton","701774","Badenoch & Clark Recruit. Specialist","CJ0358/00","2,260.00","Agency Staff","130169756","10/05/2017","Strategic Director People","Head of Strategic Commissioning � People","R1100"
"Wolverhampton City Council","http://opendatacommunities.org/id/metropolitan-district-council/wolverhampton","701774","Badenoch & Clark Recruit. Specialist","CJ0359/00","2,260.00","Agency Staff","130169757","10/05/2017","Strategic Director People","Head of Strategic Commissioning � People","R1100"
"Wolverhampton City Council","http://opendatacommunities.org/id/metropolitan-district-council/wolverhampton","701774","Badenoch & Clark Recruit. Specialist","CJ0361/00","1,695.00","Agency Staff","130169758","10/05/2017","Strategic Director People","Head of Strategic Commissioning � People","R1100"
"Wolverhampton City Council","http://opendatacommunities.org/id/metropolitan-district-council/wolverhampton","701774","Badenoch & Clark Recruit. Specialist","CH5006/00","1,740.00","Agency Staff","130169753","10/05/2017","Strategic Director People","Head of Strategic Commissioning � People","R1100"
"Wolverhampton City Council","http://opendatacommunities.org/id/metropolitan-district-council/wolverhampton","701774","Badenoch & Clark Recruit. Specialist","CF0151/00","2,175.00","Agency Staff","130169749","10/05/2017","Strategic Director People","Head of Strategic Commissioning � People","R1100"
"Wolverhampton City Council","http://opendatacommunities.org/id/metropolitan-district-council/wolverhampton","701774","Badenoch & Clark Recruit. Specialist","CJ4778/00","881.05","Agency Staff","130169760","10/05/2017","Strategic Director People","Head of Strategic Commissioning � People","R1100"
"Wolverhampton City Council","http://opendatacommunities.org/id/metropolitan-district-council/wolverhampton","701774","Badenoch & Clark Recruit. Specialist","CG0050/00","2,175.00","Agency Staff","130169751","10/05/2017","Strategic Director People","Head of Strategic Commissioning � People","R1100"
"Wolverhampton City Council","http://opendatacommunities.org/id/metropolitan-district-council/wolverhampton","701774","Badenoch & Clark Recruit. Specialist","CF1536/00","999.40","Agency Staff","130169750","10/05/2017","Strategic Director People","Head of Strategic Commissioning � People","R1100"
"Wolverhampton City Council","http://opendatacommunities.org/id/metropolitan-district-council/wolverhampton","701774","Badenoch & Clark Recruit. Specialist","CG1077/00","920.50","Agency Staff","130169752","10/05/2017","Strategic Director People","Head of Strategic Commissioning � People","R1100"
"Wolverhampton City Council","http://opendatacommunities.org/id/metropolitan-district-council/wolverhampton","701774","Badenoch & Clark Recruit. Specialist","CH5987/00","1,012.55","Agency Staff","130169754","10/05/2017","Strategic Director People","Head of Strategic Commissioning � People","R1100"
"Wolverhampton City Council","http://opendatacommunities.org/id/metropolitan-district-council/wolverhampton","701774","Badenoch & Clark Recruit. Specialist","CR2455/00","2,100.00","Agency Staff","130171996","24/05/2017","Strategic Finance","Strategic Finance","R1100"
"Wolverhampton City Council","http://opendatacommunities.org/id/metropolitan-district-council/wolverhampton","701774","Badenoch & Clark Recruit. Specialist","CR2456/00","1,680.00","Agency Staff","130171997","24/05/2017","Strategic Finance","Strategic Finance","R1100"
"Wolverhampton City Council","http://opendatacommunities.org/id/metropolitan-district-council/wolverhampton","701774","Badenoch & Clark Recruit. Specialist","CR2457/00","2,100.00","Agency Staff","130171998","24/05/2017","Strategic Finance","Strategic Finance","R1100"
"Wolverhampton City Council","http://opendatacommunities.org/id/metropolitan-district-council/wolverhampton","701785","Bakare Beds Limited","46792","476.00","Equipment - R & M","130169348","05/05/2017","Independent Living Service","Independent Living Service","R4003"
"Wolverhampton City Council","http://opendatacommunities.org/id/metropolitan-district-council/wolverhampton","701787","Baker Hall Limited","WV/04/17","1,155.00","Services - Consultants","130170674","24/05/2017","Planning","Building Consultancy","R4404"
"Wolverhampton City Council","http://opendatacommunities.org/id/metropolitan-district-council/wolverhampton","701797","Barber Of Sheffield Limited","477444","310.26","Equipment - Purchase","130171568","24/05/2017","Bereavement Services","Coroners","R4000"
"Wolverhampton City Council","http://opendatacommunities.org/id/metropolitan-district-council/wolverhampton","701797","Barber Of Sheffield Limited","485338","770.89","Equipment - Purchase","130171569","19/05/2017","Bereavement Services","Coroners","R4000"
"Wolverhampton City Council","http://opendatacommunities.org/id/metropolitan-district-council/wolverhampton","701797","Barber Of Sheffield Limited","492447","235.74","Equipment - Purchase","130168431","10/05/2017","Bereavement Services","Coroners","R4000"
"Wolverhampton City Council","http://opendatacommunities.org/id/metropolitan-district-council/wolverhampton","701797","Barber Of Sheffield Limited","492447","133.80","Equipment - Purchase","130168431","10/05/2017","Bereavement Services","Coroners","R4000"
"Wolverhampton City Council","http://opendatacommunities.org/id/metropolitan-district-council/wolverhampton","701797","Barber Of Sheffield Limited","492447","20.00","Equipment - Purchase","130168431","10/05/2017","Bereavement Services","Coroners","R4000"
"Wolverhampton City Council","http://opendatacommunities.org/id/metropolitan-district-council/wolverhampton","701797","Barber Of Sheffield Limited","492447","15.25","Equipment - Purchase","130168431","10/05/2017","Bereavement Services","Coroners","R4000"
"Wolverhampton City Council","http://opendatacommunities.org/id/metropolitan-district-council/wolverhampton","701797","Barber Of Sheffield Limited","492447","34.50","Equipment - Purchase","130168431","10/05/2017","Bereavement Services","Coroners","R4000"
"Wolverhampton City Council","http://opendatacommunities.org/id/metropolitan-district-council/wolverhampton","701797","Barber Of Sheffield Limited","492447","58.75","Equipment - Purchase","130168431","10/05/2017","Bereavement Services","Coroners","R4000"
"Wolverhampton City Council","http://opendatacommunities.org/id/metropolitan-district-council/wolverhampton","701797","Barber Of Sheffield Limited","492447","19.80","Equipment - Purchase","130168431","10/05/2017","Bereavement Services","Coroners","R4000"
"Wolverhampton City Council","http://opendatacommunities.org/id/metropolitan-district-council/wolverhampton","701832","Bbp.Security Services & Training Limited","120WCC170517","810.00","Services - Security","130172002","24/05/2017","Maintenance Programme","Centralised R&M","R4405"
"Wolverhampton City Council","http://opendatacommunities.org/id/metropolitan-district-council/wolverhampton","701832","Bbp.Security Services & Training Limited","123WCC180517","1,800.00","Services - Security","130172175","24/05/2017","Facilities Management","i10 Facilities Management","R4405"
"Wolverhampton City Council","http://opendatacommunities.org/id/metropolitan-district-council/wolverhampton","701832","Bbp.Security Services & Training Limited","122WCC180517","2,570.00","Services - Security","130172174","24/05/2017","Facilities Management","Parkfields Office Accomodation","R4405"
"Wolverhampton City Council","http://opendatacommunities.org/id/metropolitan-district-council/wolverhampton","701832","Bbp.Security Services & Training Limited","121WCC180517","6,863.00","Services - Security","130172173","24/05/2017","Facilities Management","Management of Vacant Properties","R4405"
"Wolverhampton City Council","http://opendatacommunities.org/id/metropolitan-district-council/wolverhampton","701832","Bbp.Security Services & Training Limited","1006LCIV020517","1,050.75","Services - Security","130171097","19/05/2017","Visitor Economy","The Little Civic","R4405"
"Wolverhampton City Council","http://opendatacommunities.org/id/metropolitan-district-council/wolverhampton","701832","Bbp.Security Services & Training Limited","114WCC110517","320.00","Services - Security","130171098","19/05/2017","Visitor Economy","Bantock House Museum","R4405"
"Wolverhampton City Council","http://opendatacommunities.org/id/metropolitan-district-council/wolverhampton","701832","Bbp.Security Services & Training Limited","044TM100517","7,686.00","Services - Security","130170917","17/05/2017","Licensing","Licensing - Private Hire Vehicles","R4405"
"Wolverhampton City Council","http://opendatacommunities.org/id/metropolitan-district-council/wolverhampton","701832","Bbp.Security Services & Training Limited","045TM240517","7,168.00","Services - Security","130173007","31/05/2017","Licensing","Licensing - Private Hire Vehicles","R4405"
"Wolverhampton City Council","http://opendatacommunities.org/id/metropolitan-district-council/wolverhampton","701832","Bbp.Security Services & Training Limited","046TM240517","2,025.00","Services - Security","130173008","31/05/2017","Licensing","Licensing - H.Carriage/Pr.Hire Vehicles","R4405"
"Wolverhampton City Council","http://opendatacommunities.org/id/metropolitan-district-council/wolverhampton","701832","Bbp.Security Services & Training Limited","119WCC170517","100.00","Waste Management","130172001","26/05/2017","Looked After Children","Head of Service - LAC","R2703"
"Wolverhampton City Council","http://opendatacommunities.org/id/metropolitan-district-council/wolverhampton","701832","Bbp.Security Services & Training Limited","115WCC110517","320.00","Services - Professional Fees","130171099","17/05/2017","City Development","Strategic Disposals","R4400"
"Wolverhampton City Council","http://opendatacommunities.org/id/metropolitan-district-council/wolverhampton","701832","Bbp.Security Services & Training Limited","028WCC300317","1,620.00","Services - Security","130169527","03/05/2017","Facilities Management","Caretakers Supply Pool","R4405"
"Wolverhampton City Council","http://opendatacommunities.org/id/metropolitan-district-council/wolverhampton","701832","Bbp.Security Services & Training Limited","1007W CC170517OE","2,645.94","Services - Security","130171999","24/05/2017","Visitor Economy","Vaisakhi","R4405"
"Wolverhampton City Council","http://opendatacommunities.org/id/metropolitan-district-council/wolverhampton","701832","Bbp.Security Services & Training Limited","117WCC160517","1,500.00","Services - Security","130171745","24/05/2017","Facilities Management","Management of Vacant Properties","R4405"
"Wolverhampton City Council","http://opendatacommunities.org/id/metropolitan-district-council/wolverhampton","701832","Bbp.Security Services & Training Limited","001WCC230517","2,023.50","Services - Security","130172762","31/05/2017","Early Intervention","EIP Locality 2 � Bilston/Rocket Pool","R4405"
"Wolverhampton City Council","http://opendatacommunities.org/id/metropolitan-district-council/wolverhampton","701832","Bbp.Security Services & Training Limited","124WCC230517","360.00","Services - Security","130172763","31/05/2017","Maintenance Programme","Asset Management Team","R4405"
"Wolverhampton City Council","http://opendatacommunities.org/id/metropolitan-district-council/wolverhampton","701832","Bbp.Security Services & Training Limited","047TM250517","11,340.00","Services - Security","130173143","31/05/2017","Licensing","Licensing - H.Carriage/Pr.Hire Vehicles","R4405"
"Wolverhampton City Council","http://opendatacommunities.org/id/metropolitan-district-council/wolverhampton","701832","Bbp.Security Services & Training Limited","116WCC110517","1,620.00","Services - Security","130171100","17/05/2017","Facilities Management","Caretakers Supply Pool","R4405"
"Wolverhampton City Council","http://opendatacommunities.org/id/metropolitan-district-council/wolverhampton","701842","Beacon Centre For The Blind","BCI2536220170511","96.60","TPP - Day Care","190336038","12/05/2017","Older People Assessment & Care Management","OP Care Purchasing (Spot Placements)","R5430"
"Wolverhampton City Council","http://opendatacommunities.org/id/metropolitan-district-council/wolverhampton","701842","Beacon Centre For The Blind","BCI2536220170511","120.75","TPP - Day Care","190336038","12/05/2017","Older People Assessment & Care Management","OP Care Purchasing (Spot Placements)","R5430"
"Wolverhampton City Council","http://opendatacommunities.org/id/metropolitan-district-council/wolverhampton","701842","Beacon Centre For The Blind","BCI2536220170511","96.60","TPP - Day Care","190336038","12/05/2017","Older People Assessment & Care Management","OP Care Purchasing (Spot Placements)","R5430"
"Wolverhampton City Council","http://opendatacommunities.org/id/metropolitan-district-council/wolverhampton","701842","Beacon Centre For The Blind","BCI2536220170511","24.15","TPP - Day Care","190336038","12/05/2017","Older People Assessment & Care Management","OP Care Purchasing (Spot Placements)","R5430"
"Wolverhampton City Council","http://opendatacommunities.org/id/metropolitan-district-council/wolverhampton","701842","Beacon Centre For The Blind","BCI2536220170511","48.30","TPP - Day Care","190336038","12/05/2017","Older People Assessment & Care Management","OP Care Purchasing (Spot Placements)","R5430"
"Wolverhampton City Council","http://opendatacommunities.org/id/metropolitan-district-council/wolverhampton","701842","Beacon Centre For The Blind","BCI2536220170511","48.30","TPP - Day Care","190336038","12/05/2017","Older People Assessment & Care Management","OP Care Purchasing (Spot Placements)","R5430"
"Wolverhampton City Council","http://opendatacommunities.org/id/metropolitan-district-council/wolverhampton","701842","Beacon Centre For The Blind","BCI2536220170511","96.60","TPP - Day Care","190336038","12/05/2017","Older People Assessment & Care Management","OP Care Purchasing (Spot Placements)","R5430"
"Wolverhampton City Council","http://opendatacommunities.org/id/metropolitan-district-council/wolverhampton","701842","Beacon Centre For The Blind","BCI2536220170511","193.20","TPP - Day Care","190336038","12/05/2017","Older People Assessment & Care Management","OP Care Purchasing (Spot Placements)","R5430"
"Wolverhampton City Council","http://opendatacommunities.org/id/metropolitan-district-council/wolverhampton","701842","Beacon Centre For The Blind","BCI2536220170511","144.90","TPP - Day Care","190336038","12/05/2017","Older People Assessment & Care Management","OP Care Purchasing (Spot Placements)","R5430"
"Wolverhampton City Council","http://opendatacommunities.org/id/metropolitan-district-council/wolverhampton","701842","Beacon Centre For The Blind","BCI2536220170511","96.60","TPP - Day Care","190336038","12/05/2017","Older People Assessment & Care Management","OP Care Purchasing (Spot Placements)","R5430"
"Wolverhampton City Council","http://opendatacommunities.org/id/metropolitan-district-council/wolverhampton","701842","Beacon Centre For The Blind","BCI2536220170511","72.45","TPP - Day Care","190336038","12/05/2017","Older People Assessment & Care Management","OP Care Purchasing (Spot Placements)","R5430"
"Wolverhampton City Council","http://opendatacommunities.org/id/metropolitan-district-council/wolverhampton","701842","Beacon Centre For The Blind","BCI2536220170511","96.60","TPP - Day Care","190336038","12/05/2017","Older People Assessment & Care Management","OP Care Purchasing (Spot Placements)","R5430"
"Wolverhampton City Council","http://opendatacommunities.org/id/metropolitan-district-council/wolverhampton","701842","Beacon Centre For The Blind","BCI2536220170511","193.20","TPP - Day Care","190336038","12/05/2017","Older People Assessment & Care Management","OP Care Purchasing (Spot Placements)","R5430"
"Wolverhampton City Council","http://opendatacommunities.org/id/metropolitan-district-council/wolverhampton","701842","Beacon Centre For The Blind","BCI2536220170511","410.55","TPP - Day Care","190336038","12/05/2017","Older People Assessment & Care Management","OP Care Purchasing (Spot Placements)","R5430"
"Wolverhampton City Council","http://opendatacommunities.org/id/metropolitan-district-council/wolverhampton","701842","Beacon Centre For The Blind","BCI2536220170511","144.90","TPP - Day Care","190336038","12/05/2017","Older People Assessment & Care Management","OP Care Purchasing (Spot Placements)","R5430"
"Wolverhampton City Council","http://opendatacommunities.org/id/metropolitan-district-council/wolverhampton","701842","Beacon Centre For The Blind","BCI2536220170511","24.15","TPP - Day Care","190336038","12/05/2017","Older People Assessment & Care Management","OP Care Purchasing (Spot Placements)","R5430"
"Wolverhampton City Council","http://opendatacommunities.org/id/metropolitan-district-council/wolverhampton","701842","Beacon Centre For The Blind","BCI2536220170511","72.45","TPP - Day Care","190336038","12/05/2017","Older People Assessment & Care Management","OP Care Purchasing (Spot Placements)","R5430"
"Wolverhampton City Council","http://opendatacommunities.org/id/metropolitan-district-council/wolverhampton","701842","Beacon Centre For The Blind","BCI2536220170511","72.45","TPP - Day Care","190336038","12/05/2017","Older People Assessment & Care Management","OP Care Purchasing (Spot Placements)","R5430"
"Wolverhampton City Council","http://opendatacommunities.org/id/metropolitan-district-council/wolverhampton","701842","Beacon Centre For The Blind","BCI2536220170511","48.30","TPP - Day Care","190336038","12/05/2017","Older People Assessment & Care Management","OP Care Purchasing (Spot Placements)","R5430"
"Wolverhampton City Council","http://opendatacommunities.org/id/metropolitan-district-council/wolverhampton","701842","Beacon Centre For The Blind","BCI2536220170511","96.60","TPP - Day Care","190336038","12/05/2017","Older People Assessment & Care Management","OP Care Purchasing (Spot Placements)","R5430"
"Wolverhampton City Council","http://opendatacommunities.org/id/metropolitan-district-council/wolverhampton","701842","Beacon Centre For The Blind","BCI2536220170511","241.50","TPP - Day Care","190336038","12/05/2017","Older People Assessment & Care Management","OP Care Purchasing (Spot Placements)","R5430"
"Wolverhampton City Council","http://opendatacommunities.org/id/metropolitan-district-council/wolverhampton","701842","Beacon Centre For The Blind","BCI2536220170511","48.30","TPP - Day Care","190336038","12/05/2017","Older People Assessment & Care Management","OP Care Purchasing (Spot Placements)","R5430"
"Wolverhampton City Council","http://opendatacommunities.org/id/metropolitan-district-council/wolverhampton","701842","Beacon Centre For The Blind","BCI2536220170511","48.30","TPP - Day Care","190336038","12/05/2017","Older People Assessment & Care Management","OP Care Purchasing (Spot Placements)","R5430"
"Wolverhampton City Council","http://opendatacommunities.org/id/metropolitan-district-council/wolverhampton","701842","Beacon Centre For The Blind","BCI2536220170511","48.30","TPP - Day Care","190336038","12/05/2017","Older People Assessment & Care Management","OP Care Purchasing (Spot Placements)","R5430"
"Wolverhampton City Council","http://opendatacommunities.org/id/metropolitan-district-council/wolverhampton","701842","Beacon Centre For The Blind","BCI2536220170511","72.45","TPP - Day Care","190336038","12/05/2017","Older People Assessment & Care Management","OP Care Purchasing (Spot Placements)","R5430"
"Wolverhampton City Council","http://opendatacommunities.org/id/metropolitan-district-council/wolverhampton","701842","Beacon Centre For The Blind","BCI2536220170511","96.60","TPP - Day Care","190336038","12/05/2017","Older People Assessment & Care Management","OP Care Purchasing (Spot Placements)","R5430"
"Wolverhampton City Council","http://opendatacommunities.org/id/metropolitan-district-council/wolverhampton","701842","Beacon Centre For The Blind","BCI2536220170511","24.15","TPP - Day Care","190336038","12/05/2017","Older People Assessment & Care Management","OP Care Purchasing (Spot Placements)","R5430"
"Wolverhampton City Council","http://opendatacommunities.org/id/metropolitan-district-council/wolverhampton","701842","Beacon Centre For The Blind","BCI2536220170511","96.60","TPP - Day Care","190336038","12/05/2017","Older People Assessment & Care Management","OP Care Purchasing (Spot Placements)","R5430"
"Wolverhampton City Council","http://opendatacommunities.org/id/metropolitan-district-council/wolverhampton","701842","Beacon Centre For The Blind","BCI2536220170511","96.60","TPP - Day Care","190336038","12/05/2017","Older People Assessment & Care Management","OP Care Purchasing (Spot Placements)","R5430"
"Wolverhampton City Council","http://opendatacommunities.org/id/metropolitan-district-council/wolverhampton","701842","Beacon Centre For The Blind","BCI2536220170511","72.45","TPP - Day Care","190336038","12/05/2017","Older People Assessment & Care Management","OP Care Purchasing (Spot Placements)","R5430"
"Wolverhampton City Council","http://opendatacommunities.org/id/metropolitan-district-council/wolverhampton","701842","Beacon Centre For The Blind","BCI2536220170511","72.45","TPP - Day Care","190336038","12/05/2017","Older People Assessment & Care Management","OP Care Purchasing (Spot Placements)","R5430"
"Wolverhampton City Council","http://opendatacommunities.org/id/metropolitan-district-council/wolverhampton","701842","Beacon Centre For The Blind","BCI2536220170511","72.45","TPP - Day Care","190336038","12/05/2017","Older People Assessment & Care Management","OP Care Purchasing (Spot Placements)","R5430"
"Wolverhampton City Council","http://opendatacommunities.org/id/metropolitan-district-council/wolverhampton","701842","Beacon Centre For The Blind","BCI2536220170511","72.45","TPP - Day Care","190336038","12/05/2017","Older People Assessment & Care Management","OP Care Purchasing (Spot Placements)","R5430"
"Wolverhampton City Council","http://opendatacommunities.org/id/metropolitan-district-council/wolverhampton","701842","Beacon Centre For The Blind","BCI2536220170511","24.15","TPP - Day Care","190336038","12/05/2017","Older People Assessment & Care Management","OP Care Purchasing (Spot Placements)","R5430"
"Wolverhampton City Council","http://opendatacommunities.org/id/metropolitan-district-council/wolverhampton","701842","Beacon Centre For The Blind","BCI2536220170511","169.05","TPP - Day Care","190336038","12/05/2017","Older People Assessment & Care Management","OP Care Purchasing (Spot Placements)","R5430"
"Wolverhampton City Council","http://opendatacommunities.org/id/metropolitan-district-council/wolverhampton","701842","Beacon Centre For The Blind","BCI2536220170511","144.90","TPP - Day Care","190336038","12/05/2017","Older People Assessment & Care Management","OP Care Purchasing (Spot Placements)","R5430"
"Wolverhampton City Council","http://opendatacommunities.org/id/metropolitan-district-council/wolverhampton","701842","Beacon Centre For The Blind","BCI2536220170511","72.45","TPP - Day Care","190336038","12/05/2017","Older People Assessment & Care Management","OP Care Purchasing (Spot Placements)","R5430"
"Wolverhampton City Council","http://opendatacommunities.org/id/metropolitan-district-council/wolverhampton","701842","Beacon Centre For The Blind","BCI2536220170511","169.05","TPP - Day Care","190336038","12/05/2017","Older People Assessment & Care Management","OP Care Purchasing (Spot Placements)","R5430"
"Wolverhampton City Council","http://opendatacommunities.org/id/metropolitan-district-council/wolverhampton","701842","Beacon Centre For The Blind","BCI2536220170511","96.60","TPP - Day Care","190336038","12/05/2017","Older People Assessment & Care Management","OP Care Purchasing (Spot Placements)","R5430"
"Wolverhampton City Council","http://opendatacommunities.org/id/metropolitan-district-council/wolverhampton","701842","Beacon Centre For The Blind","BCI2536220170511","241.50","TPP - Day Care","190336038","12/05/2017","Older People Assessment & Care Management","OP Care Purchasing (Spot Placements)","R5430"
"Wolverhampton City Council","http://opendatacommunities.org/id/metropolitan-district-council/wolverhampton","701842","Beacon Centre For The Blind","BCI2536220170511","72.45","TPP - Day Care","190336038","12/05/2017","Older People Assessment & Care Management","OP Care Purchasing (Spot Placements)","R5430"
"Wolverhampton City Council","http://opendatacommunities.org/id/metropolitan-district-council/wolverhampton","701842","Beacon Centre For The Blind","BCI2536320170512","300.00","TPP - Day Care","190336205","17/05/2017","Older People Assessment & Care Management","OP Care Purchasing (Spot Placements)","R5430"
"Wolverhampton City Council","http://opendatacommunities.org/id/metropolitan-district-council/wolverhampton","701842","Beacon Centre For The Blind","BCI2536320170512","550.00","TPP - Day Care","190336205","17/05/2017","Older People Assessment & Care Management","OP Care Purchasing (Spot Placements)","R5430"
"Wolverhampton City Council","http://opendatacommunities.org/id/metropolitan-district-council/wolverhampton","701842","Beacon Centre For The Blind","BCI2536320170512","150.00","TPP - Day Care","190336205","17/05/2017","Older People Assessment & Care Management","OP Care Purchasing (Spot Placements)","R5430"
"Wolverhampton City Council","http://opendatacommunities.org/id/metropolitan-district-council/wolverhampton","701842","Beacon Centre For The Blind","BCI2536320170512","350.00","TPP - Day Care","190336205","17/05/2017","Older People Assessment & Care Management","OP Care Purchasing (Spot Placements)","R5430"
"Wolverhampton City Council","http://opendatacommunities.org/id/metropolitan-district-council/wolverhampton","701842","Beacon Centre For The Blind","BCI2536320170512","550.00","TPP - Day Care","190336205","17/05/2017","Older People Assessment & Care Management","OP Care Purchasing (Spot Placements)","R5430"
"Wolverhampton City Council","http://opendatacommunities.org/id/metropolitan-district-council/wolverhampton","701842","Beacon Centre For The Blind","BCI2536320170512","250.00","TPP - Day Care","190336205","17/05/2017","Older People Assessment & Care Management","OP Care Purchasing (Spot Placements)","R5430"
"Wolverhampton City Council","http://opendatacommunities.org/id/metropolitan-district-council/wolverhampton","701843","Beacon Land Surveys","2017068","455.00","Services - Professional Fees","130170450","10/05/2017","Housing Revenue Account","HRA General","R4400"
"Wolverhampton City Council","http://opendatacommunities.org/id/metropolitan-district-council/wolverhampton","701843","Beacon Land Surveys","2017067","435.00","Services - Professional Fees","130170449","10/05/2017","Housing Revenue Account","HRA General","R4400"
"Wolverhampton City Council","http://opendatacommunities.org/id/metropolitan-district-council/wolverhampton","701880","Berendsen UK Limited","SN2644744","208.55","Protective Clothing","190338473","19/05/2017","Fleet Services","Fleet Management","R4200"
"Wolverhampton City Council","http://opendatacommunities.org/id/metropolitan-district-council/wolverhampton","701884","Berrybrook Primary School Fund A/C","TFT Summer 2017 Inst 1","10,752.48","Grant Payments","190335917","12/05/2017","Early Years","Early Years Entitlement Funding for Disadvantaged 2 Year Olds","R4700"
"Wolverhampton City Council","http://opendatacommunities.org/id/metropolitan-district-council/wolverhampton","701925","Bild","36512","496.10","Training Expenses","130165132","03/05/2017","Human Resources","Workforce Development","R1650"
"Wolverhampton City Council","http://opendatacommunities.org/id/metropolitan-district-council/wolverhampton","701925","Bild","36512","-496.10","Training Expenses","130165132","03/05/2017","Human Resources","Workforce Development","R1650"
"Wolverhampton City Council","http://opendatacommunities.org/id/metropolitan-district-council/wolverhampton","701925","Bild","36512","496.10","Training Expenses","130165132","03/05/2017","Human Resources","Workforce Development","R1650"
"Wolverhampton City Council","http://opendatacommunities.org/id/metropolitan-district-council/wolverhampton","701930","Bilston Resource Centre","P001","30.00","Printing","130170063","31/05/2017","Skills","IMPACT","R4300"
"Wolverhampton City Council","http://opendatacommunities.org/id/metropolitan-district-council/wolverhampton","701939","Birmingham Boys & Girls Union","4268","2,250.00","Education trips, Holidays, Outings & Activities","130169892","24/05/2017","All Age Disability (Disabilities)","B-Safe","R4970"
"Wolverhampton City Council","http://opendatacommunities.org/id/metropolitan-district-council/wolverhampton","701944","Birmingham CC - General Fund","9002201350","9,052.79","TPP - Payments to Local Authorities","130169893","10/05/2017","Standards and Vulnerable Pupils","SEN Education OOC","R5100"
"Wolverhampton City Council","http://opendatacommunities.org/id/metropolitan-district-council/wolverhampton","701944","Birmingham CC - General Fund","9002214114","850.50","Client Transport - SEN","130172764","31/05/2017","School Planning & Resources","Special - Transport","R3043"
"Wolverhampton City Council","http://opendatacommunities.org/id/metropolitan-district-council/wolverhampton","701944","Birmingham CC - General Fund","Refund super levies 16/17","12,912.16","Enhanced Pension","190333440","05/05/2017","Central Corporate Budgets","Local Government Reorganisation","R1301"
"Wolverhampton City Council","http://opendatacommunities.org/id/metropolitan-district-council/wolverhampton","701944","Birmingham CC - General Fund","9002209351","633.78","Client Transport - SEN","130171746","24/05/2017","School Planning & Resources","Special - Transport","R3043"
"Wolverhampton City Council","http://opendatacommunities.org/id/metropolitan-district-council/wolverhampton","701962","Black Country Chamber Of Commerce","43406","85.00","Marketing \ Non-staff advertising","130169528","03/05/2017","Enterprise","Growth Hub Phase 2 (2015/16)","R4317"
"Wolverhampton City Council","http://opendatacommunities.org/id/metropolitan-district-council/wolverhampton","701968","Black Country Partnership NHS Ft","1100000411","3,750.00","TPP - Social Care Support Services","130172003","26/05/2017","All Age Disability (Disabilities)","Commissioning Disabilities","R5501"
"Wolverhampton City Council","http://opendatacommunities.org/id/metropolitan-district-council/wolverhampton","701968","Black Country Partnership NHS Ft","3100000786","13,855.33","TPP - Social Care Support Services","130169768","17/05/2017","Mental Health Commissioning","Child & Adolescent Mental Health Service","R5501"
"Wolverhampton City Council","http://opendatacommunities.org/id/metropolitan-district-council/wolverhampton","701968","Black Country Partnership NHS Ft","3100000787","8,972.73","TPP - Social Care Support Services","130169769","17/05/2017","Mental Health Commissioning","Child & Adolescent Mental Health Service","R5501"
"Wolverhampton City Council","http://opendatacommunities.org/id/metropolitan-district-council/wolverhampton","701968","Black Country Partnership NHS Ft","3100000785","15,282.08","TPP - Social Care Support Services","130169767","17/05/2017","Mental Health Commissioning","Child & Adolescent Mental Health Service","R5501"
"Wolverhampton City Council","http://opendatacommunities.org/id/metropolitan-district-council/wolverhampton","701968","Black Country Partnership NHS Ft","3100000427","7,868.38","TPP - Social Care Support Services","130169761","10/05/2017","All Age Disability (Disabilities)","Commissioning Disabilities","R5501"
"Wolverhampton City Council","http://opendatacommunities.org/id/metropolitan-district-council/wolverhampton","701983","Blakenhall Neighbourhood Nursery","P14323520170519","100.00","Grant Payments to Individuals","190339378","24/05/2017","Looked After Children","LAC Education Team (LACE)","R6402"
"Wolverhampton City Council","http://opendatacommunities.org/id/metropolitan-district-council/wolverhampton","701983","Blakenhall Neighbourhood Nursery","NEF Summer 2017 INST 1","18,360.00","TPP - Private Nursery Education Funding","190335924","12/05/2017","Early Years","Early Years Universal Entitlement for 3 and 4 Year Olds","R5035"
"Wolverhampton City Council","http://opendatacommunities.org/id/metropolitan-district-council/wolverhampton","701983","Blakenhall Neighbourhood Nursery","TFT Summer 2017 Inst 1","7,356.96","Grant Payments","190335917","12/05/2017","Early Years","Early Years Entitlement Funding for Disadvantaged 2 Year Olds","R4700"
"Wolverhampton City Council","http://opendatacommunities.org/id/metropolitan-district-council/wolverhampton","701983","Blakenhall Neighbourhood Nursery","4329","198.00","TPP - Child Care provided for client","130171101","31/05/2017","Adult Education","Discretionary Fund","R5034"
"Wolverhampton City Council","http://opendatacommunities.org/id/metropolitan-district-council/wolverhampton","701996","Blue Group Interntl Limited T/A Bluecare","HSOC5638757","1,369.00","Agency Staff","130168535","05/05/2017","Child Protection","MASH","R1100"
"Wolverhampton City Council","http://opendatacommunities.org/id/metropolitan-district-council/wolverhampton","701996","Blue Group Interntl Limited T/A Bluecare","HSOC5639766","1,110.00","Agency Staff","130168538","17/05/2017","Child Protection","MASH","R1100"
"Wolverhampton City Council","http://opendatacommunities.org/id/metropolitan-district-council/wolverhampton","701996","Blue Group Interntl Limited T/A Bluecare","HSOC5616050","5.80","Agency Staff","130168385","24/05/2017","Child Protection","CIN/CP Social Work Unit - Area 4","R1100"
"Wolverhampton City Council","http://opendatacommunities.org/id/metropolitan-district-council/wolverhampton","701996","Blue Group Interntl Limited T/A Bluecare","HSOC5642234","1,258.00","Agency Staff","130170918","31/05/2017","Child Protection","CIN/CP Social Work Unit - Area 2","R1100"
"Wolverhampton City Council","http://opendatacommunities.org/id/metropolitan-district-council/wolverhampton","701996","Blue Group Interntl Limited T/A Bluecare","HSOC5641822","1,369.00","Agency Staff","130170065","31/05/2017","Child Protection","MASH","R1100"
"Wolverhampton City Council","http://opendatacommunities.org/id/metropolitan-district-council/wolverhampton","701996","Blue Group Interntl Limited T/A Bluecare","HSOC5640875","1,091.50","Agency Staff","130169350","24/05/2017","Child Protection","MASH","R1100"
"Wolverhampton City Council","http://opendatacommunities.org/id/metropolitan-district-council/wolverhampton","701996","Blue Group Interntl Limited T/A Bluecare","HSOC5617888","1,258.00","Agency Staff","130166033","24/05/2017","Child Protection","CIN/CP Social Work Unit - Area 2","R1100"
"Wolverhampton City Council","http://opendatacommunities.org/id/metropolitan-district-council/wolverhampton","701996","Blue Group Interntl Limited T/A Bluecare","HSOC5623840","1,258.00","Agency Staff","130166046","24/05/2017","Child Protection","CIN/CP Social Work Unit - Area 2","R1100"
"Wolverhampton City Council","http://opendatacommunities.org/id/metropolitan-district-council/wolverhampton","701996","Blue Group Interntl Limited T/A Bluecare","HSOC5640222","1,020.00","Agency Staff","130168688","17/05/2017","Child Protection","CIN/CP Social Work Unit - Area 2","R1100"
"Wolverhampton City Council","http://opendatacommunities.org/id/metropolitan-district-council/wolverhampton","701996","Blue Group Interntl Limited T/A Bluecare","HSOC5642233","1,003.00","Agency Staff","130170678","31/05/2017","Child Protection","CIN/CP Social Work Unit - Area 2","R1100"
"Wolverhampton City Council","http://opendatacommunities.org/id/metropolitan-district-council/wolverhampton","701996","Blue Group Interntl Limited T/A Bluecare","HSOC5638759","1,258.00","Agency Staff","130168537","05/05/2017","Child Protection","CIN/CP Social Work Unit - Area 2","R1100"
"Wolverhampton City Council","http://opendatacommunities.org/id/metropolitan-district-council/wolverhampton","701996","Blue Group Interntl Limited T/A Bluecare","HSOC5638760","1,258.00","Agency Staff","130167853","05/05/2017","Child Protection","CIN/CP Social Work Unit - Area 6","R1100"
"Wolverhampton City Council","http://opendatacommunities.org/id/metropolitan-district-council/wolverhampton","701996","Blue Group Interntl Limited T/A Bluecare","HSOC5638758","27.00","Agency Staff","130168536","05/05/2017","Child Protection","MASH","R1100"
"Wolverhampton City Council","http://opendatacommunities.org/id/metropolitan-district-council/wolverhampton","701996","Blue Group Interntl Limited T/A Bluecare","HSOC5640876","11.50","Agency Staff","130169351","24/05/2017","Child Protection","MASH","R1100"
"Wolverhampton City Council","http://opendatacommunities.org/id/metropolitan-district-council/wolverhampton","701996","Blue Group Interntl Limited T/A Bluecare","HSOC5641821","1,020.00","Agency Staff","130170064","31/05/2017","Child Protection","CIN/CP Social Work Unit - Area 6","R1100"
"Wolverhampton City Council","http://opendatacommunities.org/id/metropolitan-district-council/wolverhampton","701996","Blue Group Interntl Limited T/A Bluecare","HSOC5641823","32.80","Agency Staff","130170066","31/05/2017","Child Protection","MASH","R1100"
"Wolverhampton City Council","http://opendatacommunities.org/id/metropolitan-district-council/wolverhampton","701996","Blue Group Interntl Limited T/A Bluecare","HSOC5640642","1,020.00","Agency Staff","130169100","24/05/2017","Child Protection","CIN/CP Social Work Unit - Area 6","R1100"
"Wolverhampton City Council","http://opendatacommunities.org/id/metropolitan-district-council/wolverhampton","701996","Blue Group Interntl Limited T/A Bluecare","HSOC5640644","1,020.00","Agency Staff","130169102","24/05/2017","Child Protection","CIN/CP Social Work Unit - Area 6","R1100"
"Wolverhampton City Council","http://opendatacommunities.org/id/metropolitan-district-council/wolverhampton","701996","Blue Group Interntl Limited T/A Bluecare","HSOC5640067","1,020.00","Agency Staff","130168539","24/05/2017","Child Protection","CIN/CP Social Work Unit - Area 6","R1100"
"Wolverhampton City Council","http://opendatacommunities.org/id/metropolitan-district-council/wolverhampton","701996","Blue Group Interntl Limited T/A Bluecare","HSOC5640643","748.00","Agency Staff","130169101","24/05/2017","Child Protection","CIN/CP Social Work Unit - Area 6","R1100"
"Wolverhampton City Council","http://opendatacommunities.org/id/metropolitan-district-council/wolverhampton","701996","Blue Group Interntl Limited T/A Bluecare","HSOC5639092","1,258.00","Agency Staff","130167854","10/05/2017","Child Protection","CIN/CP Social Work Unit - Area 6","R1100"
"Wolverhampton City Council","http://opendatacommunities.org/id/metropolitan-district-council/wolverhampton","701996","Blue Group Interntl Limited T/A Bluecare","HSOC5622523","1,080.00","Agency Staff","130171534","17/05/2017","Child Protection","CIN/CP Social Work Unit - Area 4","R1100"
"Wolverhampton City Council","http://opendatacommunities.org/id/metropolitan-district-council/wolverhampton","701996","Blue Group Interntl Limited T/A Bluecare","HSOC5623472","1,332.00","Agency Staff","130171533","17/05/2017","Child Protection","CIN/CP Social Work Unit - Area 4","R1100"
"Wolverhampton City Council","http://opendatacommunities.org/id/metropolitan-district-council/wolverhampton","701996","Blue Group Interntl Limited T/A Bluecare","HSOC5620821","731.00","Agency Staff","130166042","19/05/2017","Child Protection","CIN/CP Social Work Unit - Area 2","R1100"
"Wolverhampton City Council","http://opendatacommunities.org/id/metropolitan-district-council/wolverhampton","701999","Blue Mountain Foods Limited","7263","57.00","Provisions (Resale)","130170221","26/05/2017","Catering","Education Catering - General Overheads","R4102"
"Wolverhampton City Council","http://opendatacommunities.org/id/metropolitan-district-council/wolverhampton","701999","Blue Mountain Foods Limited","7268","76.00","Provisions (Resale)","130170224","26/05/2017","Catering","Education Catering - General Overheads","R4102"
"Wolverhampton City Council","http://opendatacommunities.org/id/metropolitan-district-council/wolverhampton","701999","Blue Mountain Foods Limited","7265","57.00","Provisions (Resale)","130170223","26/05/2017","Catering","Education Catering - General Overheads","R4102"
"Wolverhampton City Council","http://opendatacommunities.org/id/metropolitan-district-council/wolverhampton","701999","Blue Mountain Foods Limited","7264","57.00","Provisions (Resale)","130170222","26/05/2017","Catering","Education Catering - General Overheads","R4102"
"Wolverhampton City Council","http://opendatacommunities.org/id/metropolitan-district-council/wolverhampton","702008","BME Travel","1851","900.00","Client Transport","130169894","24/05/2017","School Planning & Resources","Special - Transport","R3042"
"Wolverhampton City Council","http://opendatacommunities.org/id/metropolitan-district-council/wolverhampton","702041","Boulton Travel Limited","BTWCBM1.19","855.00","Client Transport","130169895","24/05/2017","School Planning & Resources","Special - Transport","R3042"
"Wolverhampton City Council","http://opendatacommunities.org/id/metropolitan-district-council/wolverhampton","702041","Boulton Travel Limited","BTHS15","1,100.00","Client Transport","130171570","31/05/2017","All Age Disability (Disabilities)","B-Safe","R3042"
"Wolverhampton City Council","http://opendatacommunities.org/id/metropolitan-district-council/wolverhampton","702041","Boulton Travel Limited","BTWCBM5.19","765.00","Client Transport","130169897","24/05/2017","School Planning & Resources","Special - Transport","R3042"
"Wolverhampton City Council","http://opendatacommunities.org/id/metropolitan-district-council/wolverhampton","702041","Boulton Travel Limited","BTWCBM3.19","810.00","Client Transport","130169896","24/05/2017","School Planning & Resources","Special - Transport","R3042"
"Wolverhampton City Council","http://opendatacommunities.org/id/metropolitan-district-council/wolverhampton","702071","Brakes/Brakefresh","9255414545","123.72","Provisions (Resale)","130169353","24/05/2017","Catering","Civic Centre Catering","R4102"
"Wolverhampton City Council","http://opendatacommunities.org/id/metropolitan-district-council/wolverhampton","702071","Brakes/Brakefresh","9255414545","-123.72","Provisions (Resale)","130169353","24/05/2017","Catering","Civic Centre Catering","R4102"
"Wolverhampton City Council","http://opendatacommunities.org/id/metropolitan-district-council/wolverhampton","702071","Brakes/Brakefresh","9255425909","147.75","Provisions (Resale)","130170067","24/05/2017","Catering","Civic Centre Catering","R4102"
"Wolverhampton City Council","http://opendatacommunities.org/id/metropolitan-district-council/wolverhampton","702071","Brakes/Brakefresh","9255425909","-147.75","Provisions (Resale)","130170067","24/05/2017","Catering","Civic Centre Catering","R4102"
"Wolverhampton City Council","http://opendatacommunities.org/id/metropolitan-district-council/wolverhampton","702071","Brakes/Brakefresh","9255414545","123.72","Provisions (Resale)","130169353","24/05/2017","Catering","Civic Centre Catering","R4102"
"Wolverhampton City Council","http://opendatacommunities.org/id/metropolitan-district-council/wolverhampton","702071","Brakes/Brakefresh","9255425909","147.75","Provisions (Resale)","130170067","24/05/2017","Catering","Civic Centre Catering","R4102"
"Wolverhampton City Council","http://opendatacommunities.org/id/metropolitan-district-council/wolverhampton","702071","Brakes/Brakefresh","9255389858","548.12","Provisions (Resale)","130168690","03/05/2017","Catering","Civic Centre Catering","R4102"
"Wolverhampton City Council","http://opendatacommunities.org/id/metropolitan-district-council/wolverhampton","702071","Brakes/Brakefresh","9255389858","-548.12","Provisions (Resale)","130168690","03/05/2017","Catering","Civic Centre Catering","R4102"
"Wolverhampton City Council","http://opendatacommunities.org/id/metropolitan-district-council/wolverhampton","702071","Brakes/Brakefresh","9255389858","548.12","Provisions (Resale)","130168690","03/05/2017","Catering","Civic Centre Catering","R4102"
"Wolverhampton City Council","http://opendatacommunities.org/id/metropolitan-district-council/wolverhampton","702071","Brakes/Brakefresh","9255395214","190.48","Provisions (Resale)","130168691","03/05/2017","Catering","Civic Centre Catering","R4102"
"Wolverhampton City Council","http://opendatacommunities.org/id/metropolitan-district-council/wolverhampton","702071","Brakes/Brakefresh","9255405620","9.17","Provisions (Resale)","130169352","12/05/2017","Catering","Civic Centre Catering","R4102"
"Wolverhampton City Council","http://opendatacommunities.org/id/metropolitan-district-council/wolverhampton","702071","Brakes/Brakefresh","9255405620","69.04","Provisions (Resale)","130169352","12/05/2017","Catering","Civic Centre Catering","R4102"
"Wolverhampton City Council","http://opendatacommunities.org/id/metropolitan-district-council/wolverhampton","702071","Brakes/Brakefresh","9255405620","78.21","Provisions (Resale)","130169352","12/05/2017","Catering","Civic Centre Catering","R4102"
"Wolverhampton City Council","http://opendatacommunities.org/id/metropolitan-district-council/wolverhampton","702071","Brakes/Brakefresh","9255405620","-78.21","Provisions (Resale)","130169352","12/05/2017","Catering","Civic Centre Catering","R4102"
"Wolverhampton City Council","http://opendatacommunities.org/id/metropolitan-district-council/wolverhampton","702071","Brakes/Brakefresh","9255395214","-190.48","Provisions (Resale)","130168691","03/05/2017","Catering","Civic Centre Catering","R4102"
"Wolverhampton City Council","http://opendatacommunities.org/id/metropolitan-district-council/wolverhampton","702071","Brakes/Brakefresh","9255395214","190.48","Provisions (Resale)","130168691","03/05/2017","Catering","Civic Centre Catering","R4102"
"Wolverhampton City Council","http://opendatacommunities.org/id/metropolitan-district-council/wolverhampton","702093","Briggs Equiptment UK Limited","107124009","413.33","Hire of Vehicles","130169898","10/05/2017","Markets","Wholesale Market Facilities Management","R3200"
"Wolverhampton City Council","http://opendatacommunities.org/id/metropolitan-district-council/wolverhampton","702111","British Gas Trading Limited","BG37-850026413410","322.43","Electricity","190333411","05/05/2017","Housing Revenue Account","Hostels / Outreach","R2100"
"Wolverhampton City Council","http://opendatacommunities.org/id/metropolitan-district-council/wolverhampton","702124","British Standards Inst:Bsi Bus Info.","94733182","1,629.00","Subscriptions","130166497","17/05/2017","Capital Programme","Capital Programme Team","R4701"
"Wolverhampton City Council","http://opendatacommunities.org/id/metropolitan-district-council/wolverhampton","702124","British Standards Inst:Bsi Bus Info.","94733182","-1,629.00","Subscriptions","130166497","17/05/2017","Capital Programme","Capital Programme Team","R4701"
"Wolverhampton City Council","http://opendatacommunities.org/id/metropolitan-district-council/wolverhampton","702124","British Standards Inst:Bsi Bus Info.","94733182","1,629.00","Subscriptions","130166497","17/05/2017","Capital Programme","Capital Programme Team","R4701"
"Wolverhampton City Council","http://opendatacommunities.org/id/metropolitan-district-council/wolverhampton","702126","BT (Phone Bills)","Q 088 ES","91.90","Comms - Telephone Rental","190339434","24/05/2017","Bereavement Services","Cemeteries","R4504"
"Wolverhampton City Council","http://opendatacommunities.org/id/metropolitan-district-council/wolverhampton","702126","BT (Phone Bills)","Q 055 NE","91.90","Comms - Telephone Rental","190339435","24/05/2017","Bereavement Services","Cemeteries","R4504"
"Wolverhampton City Council","http://opendatacommunities.org/id/metropolitan-district-council/wolverhampton","702126","BT (Phone Bills)","26126075 0035","2,241.50","Computing - Internet","130168434","05/05/2017","Operation & Maintenance of Existing Network","UTC only � External Rechargeable Works","R4537"
"Wolverhampton City Council","http://opendatacommunities.org/id/metropolitan-district-council/wolverhampton","702126","BT (Phone Bills)","CM61643549 Q075DF","103.20","Fixtures and Fittings - R&M","190341094","31/05/2017","Maintenance Programme","Centralised R&M","R2502"
"Wolverhampton City Council","http://opendatacommunities.org/id/metropolitan-district-council/wolverhampton","702126","BT (Phone Bills)","CM62195552 Q066X3","89.10","Fixtures and Fittings - R&M","190341095","31/05/2017","Maintenance Programme","Centralised R&M","R2502"
"Wolverhampton City Council","http://opendatacommunities.org/id/metropolitan-district-council/wolverhampton","702126","BT (Phone Bills)","CM62213557 Q0665J","89.10","Fixtures and Fittings - R&M","190341096","31/05/2017","Maintenance Programme","Centralised R&M","R2502"
"Wolverhampton City Council","http://opendatacommunities.org/id/metropolitan-district-council/wolverhampton","702126","BT (Phone Bills)","VP 85396270 Q04001 - 5th May 2017","208.20","Comms - Telephone Rental","190341129","31/05/2017","Parking Services","Parking Enforcement","R4504"
"Wolverhampton City Council","http://opendatacommunities.org/id/metropolitan-district-council/wolverhampton","702126","BT (Phone Bills)","CM6470 0947 Q038 3RA","91.90","Comms - Telephone Call charges","190336136","12/05/2017","Learning Disability Provider","Ernest Bold Court","R4505"
"Wolverhampton City Council","http://opendatacommunities.org/id/metropolitan-district-council/wolverhampton","702126","BT (Phone Bills)","CM6470 0947 Q038 3R","40.00","Comms - Telephone Call charges","190336137","12/05/2017","Learning Disability Provider","Ernest Bold Court","R4505"
"Wolverhampton City Council","http://opendatacommunities.org/id/metropolitan-district-council/wolverhampton","702126","BT (Phone Bills)","CM 6844 8565 Q008 TQ","103.40","Comms - Telephone Call charges","190336138","12/05/2017","Learning Disability Provider","Learning Disabilities Management","R4505"
"Wolverhampton City Council","http://opendatacommunities.org/id/metropolitan-district-council/wolverhampton","702126","BT (Phone Bills)","WM37279286 - Q0361Y","136.10","Comms - Telephone Call charges","190337288","17/05/2017","Parking Services","Car Parks Operational Staff","R4505"
"Wolverhampton City Council","http://opendatacommunities.org/id/metropolitan-district-council/wolverhampton","702126","BT (Phone Bills)","CM59262967 Q115FP","91.90","Fixtures and Fittings - R&M","190336876","17/05/2017","Facilities Management","Caretakers Community Centre","R2502"
"Wolverhampton City Council","http://opendatacommunities.org/id/metropolitan-district-council/wolverhampton","702126","BT (Phone Bills)","WM 3822 6374 Q030V6","147.00","Comms - Telephone Rental","130170451","31/05/2017","Operation & Maintenance of Existing Network","UTC Wolverhampton","R4504"
"Wolverhampton City Council","http://opendatacommunities.org/id/metropolitan-district-council/wolverhampton","702157","Browne Jacobson Llp","340948","416.00","Services - Professional Fees","130170068","19/05/2017","Human Resources","Equal Pay","R4400"
"Wolverhampton City Council","http://opendatacommunities.org/id/metropolitan-district-council/wolverhampton","702157","Browne Jacobson Llp","340948","-416.00","Services - Professional Fees","130170068","19/05/2017","Human Resources","Equal Pay","R4400"
"Wolverhampton City Council","http://opendatacommunities.org/id/metropolitan-district-council/wolverhampton","702157","Browne Jacobson Llp","340948","416.00","Services - Professional Fees","130170068","19/05/2017","Human Resources","Equal Pay","R4400"
"Wolverhampton City Council","http://opendatacommunities.org/id/metropolitan-district-council/wolverhampton","702157","Browne Jacobson Llp","345768","192.00","Services - Professional Fees","130170069","10/05/2017","Human Resources","Equal Pay","R4400"
"Wolverhampton City Council","http://opendatacommunities.org/id/metropolitan-district-council/wolverhampton","702157","Browne Jacobson Llp","351609","1,667.00","Services - Professional Fees","130169529","03/05/2017","Human Resources","Equal Pay","R4400"
"Wolverhampton City Council","http://opendatacommunities.org/id/metropolitan-district-council/wolverhampton","702157","Browne Jacobson Llp","355259","1,610.50","Services - Professional Fees","130170679","31/05/2017","Human Resources","Equal Pay","R4400"
"Wolverhampton City Council","http://opendatacommunities.org/id/metropolitan-district-council/wolverhampton","702157","Browne Jacobson Llp","My Ref: TP140182/LG 353706","416.50","Insurance - General","190336776","17/05/2017","Audit Services","Legal Liability","R4962"
"Wolverhampton City Council","http://opendatacommunities.org/id/metropolitan-district-council/wolverhampton","702157","Browne Jacobson Llp","My Ref: TP160145/LG 353699","1,502.90","Insurance - General","190336777","17/05/2017","Audit Services","Legal Liability","R4962"
"Wolverhampton City Council","http://opendatacommunities.org/id/metropolitan-district-council/wolverhampton","702157","Browne Jacobson Llp","TP160206/LG 352885","6,068.50","Insurance - General","190336771","17/05/2017","Audit Services","Legal Liability","R4962"
"Wolverhampton City Council","http://opendatacommunities.org/id/metropolitan-district-council/wolverhampton","702157","Browne Jacobson Llp","TP100142/LG 353509","932.00","Insurance - General","190336772","17/05/2017","Audit Services","Legal Liability","R4962"
"Wolverhampton City Council","http://opendatacommunities.org/id/metropolitan-district-council/wolverhampton","702161","Bruel & Kjaer UK Limited","3058931","2,135.70","Services - Professional Fees","130170680","17/05/2017","Public Protection","Air Quality and Noise","R4400"
"Wolverhampton City Council","http://opendatacommunities.org/id/metropolitan-district-council/wolverhampton","702171","BT (Business)","Q026JZ","89.10","Comms - Telephone Rental","130168540","03/05/2017","Early Intervention","EIP Locality 7 � Low Hill","R4504"
"Wolverhampton City Council","http://opendatacommunities.org/id/metropolitan-district-council/wolverhampton","702171","BT (Business)","Q026JZ","40.00","Comms - Telephone Rental","130168540","03/05/2017","Early Intervention","EIP Locality 7 � Low Hill","R4504"
"Wolverhampton City Council","http://opendatacommunities.org/id/metropolitan-district-council/wolverhampton","702171","BT (Business)","IN03722498","46,126.10","Computing - Purchase of Hardware","130173245","31/05/2017","Schools","Pupil Referral Units - Orchard Centre","R4530"
"Wolverhampton City Council","http://opendatacommunities.org/id/metropolitan-district-council/wolverhampton","702171","BT (Business)","IN03722498","100.00","Computing - Purchase of Hardware","130173245","31/05/2017","Schools","Pupil Referral Units - Orchard Centre","R4530"
"Wolverhampton City Council","http://opendatacommunities.org/id/metropolitan-district-council/wolverhampton","702172","BT Global","0790208876 March 17","101.56","Comms - Telephone Rental","190334986","10/05/2017","Management and Administration","Public Health Support Costs","R4504"
"Wolverhampton City Council","http://opendatacommunities.org/id/metropolitan-district-council/wolverhampton","702172","BT Global","436769","6,249.60","TPP - Rechargeable Works Costs","130163325","10/05/2017","Operation & Maintenance of Existing Network","UTC only � External Rechargeable Works","R5730"
"Wolverhampton City Council","http://opendatacommunities.org/id/metropolitan-district-council/wolverhampton","702172","BT Global","438713","1,515.56","Plant, Equipment, Machinery & Computer Hardware","130165343","10/05/2017","","Safety Programme","C3000"
"Wolverhampton City Council","http://opendatacommunities.org/id/metropolitan-district-council/wolverhampton","702172","BT Global","436943","750.00","TPP - Rechargeable Works Costs","130163330","17/05/2017","Operation & Maintenance of Existing Network","UTC only � External Rechargeable Works","R5730"
"Wolverhampton City Council","http://opendatacommunities.org/id/metropolitan-district-council/wolverhampton","702179","Bulk Minerals Limited","001293","154.23","Materials","130171571","24/05/2017","Highways Maintenance","Planned Highways Maintenance","R4007"
"Wolverhampton City Council","http://opendatacommunities.org/id/metropolitan-district-council/wolverhampton","702181","United Living","CSIN000061","304,777.00","Construction and Conversion","130172309","24/05/2017","","Decent Homes - Stock Improvements","C1100"
"Wolverhampton City Council","http://opendatacommunities.org/id/metropolitan-district-council/wolverhampton","702181","United Living","CSIN000062","165,000.00","Construction and Conversion","130172310","24/05/2017","","Refurbishment of Voids","C1100"
"Wolverhampton City Council","http://opendatacommunities.org/id/metropolitan-district-council/wolverhampton","702181","United Living","CSIN000054","103,034.00","Construction and Conversion","130171750","19/05/2017","","Decent Homes - Stock Improvements","C1100"
"Wolverhampton City Council","http://opendatacommunities.org/id/metropolitan-district-council/wolverhampton","702181","United Living","CSIN000056","50,000.00","R&M - Departmental planned (external)","130172308","24/05/2017","Housing Revenue Account","Amounts to be Settled with Wolverhampton Homes","R2001"
"Wolverhampton City Council","http://opendatacommunities.org/id/metropolitan-district-council/wolverhampton","702181","United Living","CSIN000060","185,431.00","Construction and Conversion","130171752","17/05/2017","","Decent Homes - Stock Improvements","C1100"
"Wolverhampton City Council","http://opendatacommunities.org/id/metropolitan-district-council/wolverhampton","702181","United Living","CSIN000051","274,000.00","Construction and Conversion","130171747","17/05/2017","","New Build infill schemes","C1100"
"Wolverhampton City Council","http://opendatacommunities.org/id/metropolitan-district-council/wolverhampton","702181","United Living","CSIN000052","35,000.00","Construction and Conversion","130171748","17/05/2017","","Refurbishment of Voids","C1100"
"Wolverhampton City Council","http://opendatacommunities.org/id/metropolitan-district-council/wolverhampton","702181","United Living","CSIN000053","22,377.00","R&M - Departmental planned (external)","130171749","17/05/2017","Housing Revenue Account","Amounts to be Settled with Wolverhampton Homes","R2001"
"Wolverhampton City Council","http://opendatacommunities.org/id/metropolitan-district-council/wolverhampton","702181","United Living","CSIN000055","50,000.00","Construction and Conversion","130171751","17/05/2017","","Structural works","C1100"
"Wolverhampton City Council","http://opendatacommunities.org/id/metropolitan-district-council/wolverhampton","702199","Burrows (Gm) Limited","264846","26.17","Equipment - Purchase","190335794","12/05/2017","Fleet Services","Fleet Management","R4000"
"Wolverhampton City Council","http://opendatacommunities.org/id/metropolitan-district-council/wolverhampton","702201","Bury M.B.C","33847829","12,873.94","TPP - Payments to Local Authorities","130172564","24/05/2017","Standards and Vulnerable Pupils","SEN Education OOC","R5100"
"Wolverhampton City Council","http://opendatacommunities.org/id/metropolitan-district-council/wolverhampton","702203","Bus. Educ.Partnersip Limited T/A Bep Grp","104934","23.50","Equipment - Purchase","130169355","19/05/2017","Enterprise","Eduction Business Partnership","R4000"
"Wolverhampton City Council","http://opendatacommunities.org/id/metropolitan-district-council/wolverhampton","702203","Bus. Educ.Partnersip Limited T/A Bep Grp","104934","-23.50","Equipment - Purchase","130169355","19/05/2017","Enterprise","Eduction Business Partnership","R4000"
"Wolverhampton City Council","http://opendatacommunities.org/id/metropolitan-district-council/wolverhampton","702203","Bus. Educ.Partnersip Limited T/A Bep Grp","104934","23.50","Equipment - Purchase","130169355","19/05/2017","Enterprise","Eduction Business Partnership","R4000"
"Wolverhampton City Council","http://opendatacommunities.org/id/metropolitan-district-council/wolverhampton","702231","Bytes Software Services Limited","477809","2,224.00","Plant, Equipment, Machinery & Computer Hardware","130171105","31/05/2017","","ICT General Programme","C3000"
"Wolverhampton City Council","http://opendatacommunities.org/id/metropolitan-district-council/wolverhampton","702231","Bytes Software Services Limited","477723","8,702.32","Plant, Equipment, Machinery & Computer Hardware","130171104","31/05/2017","","ICT General Programme","C3000"
"Wolverhampton City Council","http://opendatacommunities.org/id/metropolitan-district-council/wolverhampton","702249","C M Community Care Services Limited","CMAN04820170519","148.26","TPP - Home Care","190338530","24/05/2017","Older People Assessment & Care Management","OP Care Purchasing (Spot Placements)","R5420"
"Wolverhampton City Council","http://opendatacommunities.org/id/metropolitan-district-council/wolverhampton","702249","C M Community Care Services Limited","CMAN04820170519","98.84","TPP - Home Care","190338530","24/05/2017","Older People Assessment & Care Management","OP Care Purchasing (Spot Placements)","R5420"
"Wolverhampton City Council","http://opendatacommunities.org/id/metropolitan-district-council/wolverhampton","702249","C M Community Care Services Limited","GMOR02420170519","172.97","TPP - Home Care","190338532","24/05/2017","Older People Assessment & Care Management","OP Care Purchasing (Spot Placements)","R5420"
"Wolverhampton City Council","http://opendatacommunities.org/id/metropolitan-district-council/wolverhampton","702249","C M Community Care Services Limited","GMOR02420170519","222.39","TPP - Home Care","190338532","24/05/2017","Older People Assessment & Care Management","OP Care Purchasing (Spot Placements)","R5420"
"Wolverhampton City Council","http://opendatacommunities.org/id/metropolitan-district-council/wolverhampton","702249","C M Community Care Services Limited","RDOD04820170519","-7.06","TPP - Home Care","190338533","24/05/2017","Older People Assessment & Care Management","OP Care Purchasing (Spot Placements)","R5420"
"Wolverhampton City Council","http://opendatacommunities.org/id/metropolitan-district-council/wolverhampton","702249","C M Community Care Services Limited","RDOD04820170519","197.68","TPP - Home Care","190338533","24/05/2017","Older People Assessment & Care Management","OP Care Purchasing (Spot Placements)","R5420"
"Wolverhampton City Council","http://opendatacommunities.org/id/metropolitan-district-council/wolverhampton","702249","C M Community Care Services Limited","DRYA04120170519","172.97","TPP - Home Care","190338531","24/05/2017","Older People Assessment & Care Management","OP Care Purchasing (Spot Placements)","R5420"
"Wolverhampton City Council","http://opendatacommunities.org/id/metropolitan-district-council/wolverhampton","702249","C M Community Care Services Limited","DRYA04120170519","172.97","TPP - Home Care","190338531","24/05/2017","Older People Assessment & Care Management","OP Care Purchasing (Spot Placements)","R5420"
"Wolverhampton City Council","http://opendatacommunities.org/id/metropolitan-district-council/wolverhampton","702249","C M Community Care Services Limited","GMOR01920170509","222.39","TPP - Home Care","190335047","10/05/2017","Older People Assessment & Care Management","OP Care Purchasing (Spot Placements)","R5420"
"Wolverhampton City Council","http://opendatacommunities.org/id/metropolitan-district-council/wolverhampton","702249","C M Community Care Services Limited","GMOR01920170509","187.09","TPP - Home Care","190335047","10/05/2017","Older People Assessment & Care Management","OP Care Purchasing (Spot Placements)","R5420"
"Wolverhampton City Council","http://opendatacommunities.org/id/metropolitan-district-council/wolverhampton","702249","C M Community Care Services Limited","DRYA03720170509","172.97","TPP - Home Care","190335046","10/05/2017","Older People Assessment & Care Management","OP Care Purchasing (Spot Placements)","R5420"
"Wolverhampton City Council","http://opendatacommunities.org/id/metropolitan-district-council/wolverhampton","702249","C M Community Care Services Limited","DRYA03720170509","172.97","TPP - Home Care","190335046","10/05/2017","Older People Assessment & Care Management","OP Care Purchasing (Spot Placements)","R5420"
"Wolverhampton City Council","http://opendatacommunities.org/id/metropolitan-district-council/wolverhampton","702249","C M Community Care Services Limited","DRYA03620170509","172.97","TPP - Home Care","190335045","10/05/2017","Older People Assessment & Care Management","OP Care Purchasing (Spot Placements)","R5420"
"Wolverhampton City Council","http://opendatacommunities.org/id/metropolitan-district-council/wolverhampton","702249","C M Community Care Services Limited","DRYA03620170509","172.97","TPP - Home Care","190335045","10/05/2017","Older People Assessment & Care Management","OP Care Purchasing (Spot Placements)","R5420"
"Wolverhampton City Council","http://opendatacommunities.org/id/metropolitan-district-council/wolverhampton","702249","C M Community Care Services Limited","DHOR01920170509","197.68","TPP - Home Care","190335043","10/05/2017","Older People Assessment & Care Management","OP Care Purchasing (Spot Placements)","R5420"
"Wolverhampton City Council","http://opendatacommunities.org/id/metropolitan-district-council/wolverhampton","702249","C M Community Care Services Limited","DHOR01920170509","197.68","TPP - Home Care","190335043","10/05/2017","Older People Assessment & Care Management","OP Care Purchasing (Spot Placements)","R5420"
"Wolverhampton City Council","http://opendatacommunities.org/id/metropolitan-district-council/wolverhampton","702249","C M Community Care Services Limited","RDOD04420170509","197.68","TPP - Home Care","190335050","10/05/2017","Older People Assessment & Care Management","OP Care Purchasing (Spot Placements)","R5420"
"Wolverhampton City Council","http://opendatacommunities.org/id/metropolitan-district-council/wolverhampton","702249","C M Community Care Services Limited","RDOD04320170509","95.31","TPP - Home Care","190335049","10/05/2017","Older People Assessment & Care Management","OP Care Purchasing (Spot Placements)","R5420"
"Wolverhampton City Council","http://opendatacommunities.org/id/metropolitan-district-council/wolverhampton","702249","C M Community Care Services Limited","RDOD04320170509","95.31","TPP - Home Care","190335049","10/05/2017","Older People Assessment & Care Management","OP Care Purchasing (Spot Placements)","R5420"
"Wolverhampton City Council","http://opendatacommunities.org/id/metropolitan-district-council/wolverhampton","702249","C M Community Care Services Limited","GNOR02020170509","130.61","TPP - Home Care","190335048","10/05/2017","Older People Assessment & Care Management","OP Care Purchasing (Spot Placements)","R5420"
"Wolverhampton City Council","http://opendatacommunities.org/id/metropolitan-district-council/wolverhampton","702249","C M Community Care Services Limited","GNOR02020170509","222.39","TPP - Home Care","190335048","10/05/2017","Older People Assessment & Care Management","OP Care Purchasing (Spot Placements)","R5420"
"Wolverhampton City Council","http://opendatacommunities.org/id/metropolitan-district-council/wolverhampton","702249","C M Community Care Services Limited","DHOR02020170509","14.12","TPP - Home Care","190335044","10/05/2017","Older People Assessment & Care Management","OP Care Purchasing (Spot Placements)","R5420"
"Wolverhampton City Council","http://opendatacommunities.org/id/metropolitan-district-council/wolverhampton","702249","C M Community Care Services Limited","CMAN04420170509","148.26","TPP - Home Care","190335042","10/05/2017","Older People Assessment & Care Management","OP Care Purchasing (Spot Placements)","R5420"
"Wolverhampton City Council","http://opendatacommunities.org/id/metropolitan-district-council/wolverhampton","702249","C M Community Care Services Limited","CMAN04420170509","98.84","TPP - Home Care","190335042","10/05/2017","Older People Assessment & Care Management","OP Care Purchasing (Spot Placements)","R5420"
"Wolverhampton City Council","http://opendatacommunities.org/id/metropolitan-district-council/wolverhampton","702249","C M Community Care Services Limited","CMAN04320170509","98.84","TPP - Home Care","190335041","10/05/2017","Older People Assessment & Care Management","OP Care Purchasing (Spot Placements)","R5420"
"Wolverhampton City Council","http://opendatacommunities.org/id/metropolitan-district-council/wolverhampton","702249","C M Community Care Services Limited","CMAN04320170509","148.26","TPP - Home Care","190335041","10/05/2017","Older People Assessment & Care Management","OP Care Purchasing (Spot Placements)","R5420"
"Wolverhampton City Council","http://opendatacommunities.org/id/metropolitan-district-council/wolverhampton","702249","C M Community Care Services Limited","RDOD04520170510","-7.06","TPP - Home Care","190335566","12/05/2017","Older People Assessment & Care Management","OP Care Purchasing (Spot Placements)","R5420"
"Wolverhampton City Council","http://opendatacommunities.org/id/metropolitan-district-council/wolverhampton","702249","C M Community Care Services Limited","RDOD04520170510","197.68","TPP - Home Care","190335566","12/05/2017","Older People Assessment & Care Management","OP Care Purchasing (Spot Placements)","R5420"
"Wolverhampton City Council","http://opendatacommunities.org/id/metropolitan-district-council/wolverhampton","702249","C M Community Care Services Limited","RDOD04620170510","-7.06","TPP - Home Care","190335567","12/05/2017","Older People Assessment & Care Management","OP Care Purchasing (Spot Placements)","R5420"
"Wolverhampton City Council","http://opendatacommunities.org/id/metropolitan-district-council/wolverhampton","702249","C M Community Care Services Limited","RDOD04620170510","197.68","TPP - Home Care","190335567","12/05/2017","Older People Assessment & Care Management","OP Care Purchasing (Spot Placements)","R5420"
"Wolverhampton City Council","http://opendatacommunities.org/id/metropolitan-district-council/wolverhampton","702249","C M Community Care Services Limited","CMAN04520170510","98.84","TPP - Home Care","190335560","12/05/2017","Older People Assessment & Care Management","OP Care Purchasing (Spot Placements)","R5420"
"Wolverhampton City Council","http://opendatacommunities.org/id/metropolitan-district-council/wolverhampton","702249","C M Community Care Services Limited","CMAN04520170510","148.26","TPP - Home Care","190335560","12/05/2017","Older People Assessment & Care Management","OP Care Purchasing (Spot Placements)","R5420"
"Wolverhampton City Council","http://opendatacommunities.org/id/metropolitan-district-council/wolverhampton","702249","C M Community Care Services Limited","CMAN04620170510","98.84","TPP - Home Care","190335561","12/05/2017","Older People Assessment & Care Management","OP Care Purchasing (Spot Placements)","R5420"
"Wolverhampton City Council","http://opendatacommunities.org/id/metropolitan-district-council/wolverhampton","702249","C M Community Care Services Limited","CMAN04620170510","148.26","TPP - Home Care","190335561","12/05/2017","Older People Assessment & Care Management","OP Care Purchasing (Spot Placements)","R5420"
"Wolverhampton City Council","http://opendatacommunities.org/id/metropolitan-district-council/wolverhampton","702249","C M Community Care Services Limited","DRYA03820170510","172.97","TPP - Home Care","190335562","12/05/2017","Older People Assessment & Care Management","OP Care Purchasing (Spot Placements)","R5420"
"Wolverhampton City Council","http://opendatacommunities.org/id/metropolitan-district-council/wolverhampton","702249","C M Community Care Services Limited","DRYA03820170510","172.97","TPP - Home Care","190335562","12/05/2017","Older People Assessment & Care Management","OP Care Purchasing (Spot Placements)","R5420"
"Wolverhampton City Council","http://opendatacommunities.org/id/metropolitan-district-council/wolverhampton","702249","C M Community Care Services Limited","DRYA03920170510","172.97","TPP - Home Care","190335563","12/05/2017","Older People Assessment & Care Management","OP Care Purchasing (Spot Placements)","R5420"
"Wolverhampton City Council","http://opendatacommunities.org/id/metropolitan-district-council/wolverhampton","702249","C M Community Care Services Limited","GMOR02120170510","222.39","TPP - Home Care","190335564","12/05/2017","Older People Assessment & Care Management","OP Care Purchasing (Spot Placements)","R5420"
"Wolverhampton City Council","http://opendatacommunities.org/id/metropolitan-district-council/wolverhampton","702249","C M Community Care Services Limited","GMOR02220170510","222.39","TPP - Home Care","190335565","12/05/2017","Older People Assessment & Care Management","OP Care Purchasing (Spot Placements)","R5420"
"Wolverhampton City Council","http://opendatacommunities.org/id/metropolitan-district-council/wolverhampton","702249","C M Community Care Services Limited","GMOR02220170510","208.27","TPP - Home Care","190335565","12/05/2017","Older People Assessment & Care Management","OP Care Purchasing (Spot Placements)","R5420"
"Wolverhampton City Council","http://opendatacommunities.org/id/metropolitan-district-council/wolverhampton","702249","C M Community Care Services Limited","DRYA03920170510","172.97","TPP - Home Care","190335563","12/05/2017","Older People Assessment & Care Management","OP Care Purchasing (Spot Placements)","R5420"
"Wolverhampton City Council","http://opendatacommunities.org/id/metropolitan-district-council/wolverhampton","702249","C M Community Care Services Limited","GMOR02120170510","208.27","TPP - Home Care","190335564","12/05/2017","Older People Assessment & Care Management","OP Care Purchasing (Spot Placements)","R5420"
"Wolverhampton City Council","http://opendatacommunities.org/id/metropolitan-district-council/wolverhampton","702249","C M Community Care Services Limited","GMOR02320170515","222.39","TPP - Home Care","190336482","17/05/2017","Older People Assessment & Care Management","OP Care Purchasing (Spot Placements)","R5420"
"Wolverhampton City Council","http://opendatacommunities.org/id/metropolitan-district-council/wolverhampton","702249","C M Community Care Services Limited","GMOR02320170515","222.39","TPP - Home Care","190336482","17/05/2017","Older People Assessment & Care Management","OP Care Purchasing (Spot Placements)","R5420"
"Wolverhampton City Council","http://opendatacommunities.org/id/metropolitan-district-council/wolverhampton","702249","C M Community Care Services Limited","RDOD04720170515","197.68","TPP - Home Care","190336483","17/05/2017","Older People Assessment & Care Management","OP Care Purchasing (Spot Placements)","R5420"
"Wolverhampton City Council","http://opendatacommunities.org/id/metropolitan-district-council/wolverhampton","702249","C M Community Care Services Limited","CMAN04720170515","42.36","TPP - Home Care","190336480","17/05/2017","Older People Assessment & Care Management","OP Care Purchasing (Spot Placements)","R5420"
"Wolverhampton City Council","http://opendatacommunities.org/id/metropolitan-district-council/wolverhampton","702249","C M Community Care Services Limited","DRYA04020170515","172.97","TPP - Home Care","190336481","17/05/2017","Older People Assessment & Care Management","OP Care Purchasing (Spot Placements)","R5420"
"Wolverhampton City Council","http://opendatacommunities.org/id/metropolitan-district-council/wolverhampton","702249","C M Community Care Services Limited","DRYA04020170515","158.85","TPP - Home Care","190336481","17/05/2017","Older People Assessment & Care Management","OP Care Purchasing (Spot Placements)","R5420"
"Wolverhampton City Council","http://opendatacommunities.org/id/metropolitan-district-council/wolverhampton","702249","C M Community Care Services Limited","CMAN04720170515","148.26","TPP - Home Care","190336480","17/05/2017","Older People Assessment & Care Management","OP Care Purchasing (Spot Placements)","R5420"
"Wolverhampton City Council","http://opendatacommunities.org/id/metropolitan-district-council/wolverhampton","702273","Cale Access  UK Ltd (Cale Briparc)","21924","167.32","Equipment - Purchase","130166913","03/05/2017","Leisure Services","Central Baths","R4000"
"Wolverhampton City Council","http://opendatacommunities.org/id/metropolitan-district-council/wolverhampton","702273","Cale Access  UK Ltd (Cale Briparc)","121940","167.32","Equipment - Purchase","130169530","03/05/2017","Leisure Services","Central Baths","R4000"
"Wolverhampton City Council","http://opendatacommunities.org/id/metropolitan-district-council/wolverhampton","702273","Cale Access  UK Ltd (Cale Briparc)","122074","286.17","Equipment - R & M","130169356","03/05/2017","Parking Services","On Street Parking","R4003"
"Wolverhampton City Council","http://opendatacommunities.org/id/metropolitan-district-council/wolverhampton","702273","Cale Access  UK Ltd (Cale Briparc)","122620","480.91","Equipment - R & M","130172769","26/05/2017","Parking Services","On Street Parking","R4003"
"Wolverhampton City Council","http://opendatacommunities.org/id/metropolitan-district-council/wolverhampton","702273","Cale Access  UK Ltd (Cale Briparc)","122648","200.00","Equipment - R & M","130172771","24/05/2017","Parking Services","Car Parks Operational Staff","R4003"
"Wolverhampton City Council","http://opendatacommunities.org/id/metropolitan-district-council/wolverhampton","702273","Cale Access  UK Ltd (Cale Briparc)","122622","406.42","Equipment - R & M","130172770","26/05/2017","Parking Services","Car Parks Operational Staff","R4003"
"Wolverhampton City Council","http://opendatacommunities.org/id/metropolitan-district-council/wolverhampton","702302","Canon (UK) Limited","9175024","1,080.10","Printing","130171363","19/05/2017","Planning","Planning","R4300"
"Wolverhampton City Council","http://opendatacommunities.org/id/metropolitan-district-council/wolverhampton","702306","Capita Business Serv Limited","6003501432","108,507.53","Services - General Licences","130169899","10/05/2017","School Planning & Resources","Education Data Services","R4402"
"Wolverhampton City Council","http://opendatacommunities.org/id/metropolitan-district-council/wolverhampton","702306","Capita Business Serv Limited","6003501432","108,507.53","Services - General Licences","130169899","10/05/2017","School Planning & Resources","Education Data Services","R4402"
"Wolverhampton City Council","http://opendatacommunities.org/id/metropolitan-district-council/wolverhampton","702306","Capita Business Serv Limited","6003501432","-108,507.53","Services - General Licences","130169899","10/05/2017","School Planning & Resources","Education Data Services","R4402"
"Wolverhampton City Council","http://opendatacommunities.org/id/metropolitan-district-council/wolverhampton","702306","Capita Business Serv Limited","6003538158","284.90","Computing - Purchase of Software","130167454","19/05/2017","Licensing","Licensing - Licensing Act 2003","R4531"
"Wolverhampton City Council","http://opendatacommunities.org/id/metropolitan-district-council/wolverhampton","702306","Capita Business Serv Limited","6003541127","6,562.50","Computing - Repair and Maint","130168256","05/05/2017","Library Services","Global Budgets","R4533"
"Wolverhampton City Council","http://opendatacommunities.org/id/metropolitan-district-council/wolverhampton","702310","Capita Resourcing Limited (Crvs)","R0043025","323.70","Services - Professional Fees","130169772","24/05/2017","The Hub","Criminal Convictions Checking","R4400"
"Wolverhampton City Council","http://opendatacommunities.org/id/metropolitan-district-council/wolverhampton","702311","Capita Resourcing Limited(Veredus)","WN4029100","12,500.00","Agency Staff","130169878","10/05/2017","Skills","Economic Inclusion General","R1100"
"Wolverhampton City Council","http://opendatacommunities.org/id/metropolitan-district-council/wolverhampton","702319","Capitol Mobility Services Limited","5166","99.00","Equipment - R & M","130172312","24/05/2017","Parking Services","Shopmobility","R4003"
"Wolverhampton City Council","http://opendatacommunities.org/id/metropolitan-district-council/wolverhampton","702334","Care Monitoring 2000 Limited","33923","6,542.90","Computing - Maint Agreements","130170225","17/05/2017","Older People Assessment & Care Management","OP Care Purchasing (Spot Placements)","R4534"
"Wolverhampton City Council","http://opendatacommunities.org/id/metropolitan-district-council/wolverhampton","702343","Care4Health Limited","143647","1,380.15","Agency Staff","130173262","31/05/2017","Older People Assessment & Care Management","Promoting Independence Project Team","R1100"
"Wolverhampton City Council","http://opendatacommunities.org/id/metropolitan-district-council/wolverhampton","702343","Care4Health Limited","143577","0.02","Agency Staff","130171106","17/05/2017","Older People Assessment & Care Management","Promoting Independence Project Team","R1100"
"Wolverhampton City Council","http://opendatacommunities.org/id/metropolitan-district-council/wolverhampton","702343","Care4Health Limited","143577","0.01","Agency Staff","130171106","17/05/2017","Older People Assessment & Care Management","Promoting Independence Project Team","R1100"
"Wolverhampton City Council","http://opendatacommunities.org/id/metropolitan-district-council/wolverhampton","702343","Care4Health Limited","143577","0.02","Agency Staff","130171106","17/05/2017","Older People Assessment & Care Management","Promoting Independence Project Team","R1100"
"Wolverhampton City Council","http://opendatacommunities.org/id/metropolitan-district-council/wolverhampton","702343","Care4Health Limited","143577","0.03","Agency Staff","130171106","17/05/2017","Older People Assessment & Care Management","Promoting Independence Project Team","R1100"
"Wolverhampton City Council","http://opendatacommunities.org/id/metropolitan-district-council/wolverhampton","702343","Care4Health Limited","143578","1,386.45","Agency Staff","130171107","17/05/2017","Older People Assessment & Care Management","Promoting Independence Project Team","R1100"
"Wolverhampton City Council","http://opendatacommunities.org/id/metropolitan-district-council/wolverhampton","702343","Care4Health Limited","143577","0.03","Agency Staff","130171106","17/05/2017","Older People Assessment & Care Management","Promoting Independence Project Team","R1100"
"Wolverhampton City Council","http://opendatacommunities.org/id/metropolitan-district-council/wolverhampton","702343","Care4Health Limited","143577","873.51","Agency Staff","130171106","17/05/2017","Older People Assessment & Care Management","Promoting Independence Project Team","R1100"
"Wolverhampton City Council","http://opendatacommunities.org/id/metropolitan-district-council/wolverhampton","702343","Care4Health Limited","143577","0.02","Agency Staff","130171106","17/05/2017","Older People Assessment & Care Management","Promoting Independence Project Team","R1100"
"Wolverhampton City Council","http://opendatacommunities.org/id/metropolitan-district-council/wolverhampton","702343","Care4Health Limited","143577","0.03","Agency Staff","130171106","17/05/2017","Older People Assessment & Care Management","Promoting Independence Project Team","R1100"
"Wolverhampton City Council","http://opendatacommunities.org/id/metropolitan-district-council/wolverhampton","702343","Care4Health Limited","143577","0.03","Agency Staff","130171106","17/05/2017","Older People Assessment & Care Management","Promoting Independence Project Team","R1100"
"Wolverhampton City Council","http://opendatacommunities.org/id/metropolitan-district-council/wolverhampton","702343","Care4Health Limited","143577","0.02","Agency Staff","130171106","17/05/2017","Older People Assessment & Care Management","Promoting Independence Project Team","R1100"
"Wolverhampton City Council","http://opendatacommunities.org/id/metropolitan-district-council/wolverhampton","702343","Care4Health Limited","143577","0.04","Agency Staff","130171106","17/05/2017","Older People Assessment & Care Management","Promoting Independence Project Team","R1100"
"Wolverhampton City Council","http://opendatacommunities.org/id/metropolitan-district-council/wolverhampton","702343","Care4Health Limited","143577","0.03","Agency Staff","130171106","17/05/2017","Older People Assessment & Care Management","Promoting Independence Project Team","R1100"
"Wolverhampton City Council","http://opendatacommunities.org/id/metropolitan-district-council/wolverhampton","702343","Care4Health Limited","143577","0.02","Agency Staff","130171106","17/05/2017","Older People Assessment & Care Management","Promoting Independence Project Team","R1100"
"Wolverhampton City Council","http://opendatacommunities.org/id/metropolitan-district-council/wolverhampton","702343","Care4Health Limited","143577","0.02","Agency Staff","130171106","17/05/2017","Older People Assessment & Care Management","Promoting Independence Project Team","R1100"
"Wolverhampton City Council","http://opendatacommunities.org/id/metropolitan-district-council/wolverhampton","702343","Care4Health Limited","143577","0.02","Agency Staff","130171106","17/05/2017","Older People Assessment & Care Management","Promoting Independence Project Team","R1100"
"Wolverhampton City Council","http://opendatacommunities.org/id/metropolitan-district-council/wolverhampton","702343","Care4Health Limited","143577","0.02","Agency Staff","130171106","17/05/2017","Older People Assessment & Care Management","Promoting Independence Project Team","R1100"
"Wolverhampton City Council","http://opendatacommunities.org/id/metropolitan-district-council/wolverhampton","702343","Care4Health Limited","143577","0.03","Agency Staff","130171106","17/05/2017","Older People Assessment & Care Management","Promoting Independence Project Team","R1100"
"Wolverhampton City Council","http://opendatacommunities.org/id/metropolitan-district-council/wolverhampton","702343","Care4Health Limited","143577","0.03","Agency Staff","130171106","17/05/2017","Older People Assessment & Care Management","Promoting Independence Project Team","R1100"
"Wolverhampton City Council","http://opendatacommunities.org/id/metropolitan-district-council/wolverhampton","702343","Care4Health Limited","143577","0.03","Agency Staff","130171106","17/05/2017","Older People Assessment & Care Management","Promoting Independence Project Team","R1100"
"Wolverhampton City Council","http://opendatacommunities.org/id/metropolitan-district-council/wolverhampton","702372","C�Art Art Transport Limited","115959","565.00","Services - Professional Fees","130169541","03/05/2017","Visitor Economy","Contemporary Gallery - NPO ACE WAG","R4400"
"Wolverhampton City Council","http://opendatacommunities.org/id/metropolitan-district-council/wolverhampton","702380","Carver (Wolverhampton) Limited","PSINV01001371511","105.30","Materials","130173146","31/05/2017","Environmental Maintenance","Ground Maintenance West","R4007"
"Wolverhampton City Council","http://opendatacommunities.org/id/metropolitan-district-council/wolverhampton","702382","Carwood Motor Units Limited","1133380","358.60","Services - Professional Fees","190335759","12/05/2017","Fleet Services","Fleet Management","R4400"
"Wolverhampton City Council","http://opendatacommunities.org/id/metropolitan-district-council/wolverhampton","702389","Castle Business & Enterprise College","CSI - 16 - 18","1,769.28","TPP - Alternative Provision of Education","130169773","17/05/2017","Standards and Vulnerable Pupils","SEN Education OOC","R5037"
"Wolverhampton City Council","http://opendatacommunities.org/id/metropolitan-district-council/wolverhampton","702391","Castlecroft Medical Practice","FOS0316","73.86","Services - Professional Fees","190333767","05/05/2017","Looked After Children","Fostering Team & Allowances","R4400"
"Wolverhampton City Council","http://opendatacommunities.org/id/metropolitan-district-council/wolverhampton","702391","Castlecroft Medical Practice","M2016Q415SHCIFRQ","137.88","TPP - Public Health Contracts","190333850","05/05/2017","Contracts","Sexual Health","R5060"
"Wolverhampton City Council","http://opendatacommunities.org/id/metropolitan-district-council/wolverhampton","702391","Castlecroft Medical Practice","M2016Q415SHIUDFQ","575.28","TPP - Public Health Contracts","190333852","05/05/2017","Contracts","Sexual Health","R5060"
"Wolverhampton City Council","http://opendatacommunities.org/id/metropolitan-district-council/wolverhampton","702391","Castlecroft Medical Practice","M2016Q415HL1IPRQ","7.00","TPP - Public Health Contracts","190333854","05/05/2017","Contracts","Healthy Lifestyles","R5060"
"Wolverhampton City Council","http://opendatacommunities.org/id/metropolitan-district-council/wolverhampton","702391","Castlecroft Medical Practice","M2016Q415HL2COMQ","175.00","TPP - Public Health Contracts","190333855","05/05/2017","Contracts","Healthy Lifestyles","R5060"
"Wolverhampton City Council","http://opendatacommunities.org/id/metropolitan-district-council/wolverhampton","702391","Castlecroft Medical Practice","M2016Q415SHIUFRQ","21.57","TPP - Public Health Contracts","190333853","05/05/2017","Contracts","Sexual Health","R5060"
"Wolverhampton City Council","http://opendatacommunities.org/id/metropolitan-district-council/wolverhampton","702391","Castlecroft Medical Practice","M2016Q415SHCIFBQ","306.35","TPP - Public Health Contracts","190333851","05/05/2017","Contracts","Sexual Health","R5060"
"Wolverhampton City Council","http://opendatacommunities.org/id/metropolitan-district-council/wolverhampton","702391","Castlecroft Medical Practice","M2016Q415SHCIFIQ","229.80","TPP - Public Health Contracts","190333849","05/05/2017","Contracts","Sexual Health","R5060"
"Wolverhampton City Council","http://opendatacommunities.org/id/metropolitan-district-council/wolverhampton","702391","Castlecroft Medical Practice","FOS0317","73.86","Services - Professional Fees","190333768","05/05/2017","Looked After Children","Fostering Team & Allowances","R4400"
"Wolverhampton City Council","http://opendatacommunities.org/id/metropolitan-district-council/wolverhampton","702396","Cater Walsh Reporting Ltd","108785","414.40","Services - Professional Fees","130169542","24/05/2017","Child Protection","Head of Service - CINCP","R4400"
